Cogmind - Beta 11 @@@ ROGUE MODE // 2022.04.13 @ 22:41:25 Player: Valguris Result: Destroyed by G-73 Enforcer with Phase Gun Performance ------------- Evolutions (9) 4500 Regions Visited (41) 8200 Robots Destroyed (921) 4605 Value Destroyed (46645) 46645 Prototype IDs (150) 3000 Alien Tech Used (14) 2800 Bonus (15858) 15858 TOTAL SCORE: 85608 Bonus ------- Triggered High Security 1500 High Alert Combat Kills 15151 Follower Combat Kills 3113 Entered Garrisons 200 Used RIF Installer 500 Network Hubs Disabled 800 Met Data Miner 300 Triggered Deep Caves Wall 500 Exposed GOLEM Chamber 500 Met Zhirov 300 Met R17 at Cetus 500 Friendly Fire -7506 Cogmind --------- Core Integrity 0/1600 Matter 180/300 Energy 410/440 System Corruption 1% Temperature Cool (0) Movement Rolling (136) Ox3 Location -1/Access Parts ------- > --- POWER (3) -------- Quantum Reactor Light Quantum Reactor > --- PROPULSION (3) --- Medium Treads Wheel Centrium Wheel > --- UTILITY (17) ----- Experimental Cooling System Experimental Cooling System Huge Storage Unit Advanced Weight Redist. System Advanced Visual Processing Unit Advanced Signal Interpreter Seismic Detector Experimental Targeting Computer Improved Cloaking Device Experimental EM Disruption Field Improved Remote Shield Experimental Hacking Suite Relay Coupler [NC] (5) Assault Drone Bay (0/2) Microwarp Drive > --- WEAPON (2) ------- Enhanced Nova Cannon Hellfire Missile Launcher > --- INVENTORY (27) --- Wheel Centrium Wheel Experimental Cooling System Experimental Cooling System Improved Matter Compressor (181) Structural Scanner Advanced Sensor Array Quantum Capacitor Advanced Phase Shifter Experimental Weapon Shielding Tachyon Dispersion Ray Compact HERF Cannon Sigix Shearcannon Omega Cannon Advanced Remote Datajack Molecular Deconstructor Core Stripper Peak State ------------ > --- POWER ------------ Light Ion Engine Vortex Chain Reactor > --- PROPULSION ------- Centrium Wheel Centrium Wheel Centrium Wheel > --- UTILITY ---------- Advanced Heat Sink Advanced Heat Sink Advanced Heat Sink Huge Storage Unit Experimental Sensor Array Advanced Signal Interpreter Experimental Targeting Computer Quantum Capacitor Experimental Weapon Shielding Centrium Heavy Armor Plating Experimental EM Disruption Field Experimental Hacking Suite Relay Coupler [NC] Microwarp Drive > --- WEAPON ----------- Sigix Shearcannon > --- INVENTORY -------- Light Quantum Reactor Light Quantum Reactor Centrium Wheel Advanced Heat Sink Matter Compressor Improved Matter Compressor Improved Matter Compressor Seismic Detector Improved Cloaking Device Improved Weapon Shielding Improved Weapon Shielding Experimental Weapon Shielding Transdimensional Reconstructor Transdimensional Reconstructor High-powered Transdimensional Reconstructor Tachyon Dispersion Ray Compact HERF Cannon Enhanced Nova Cannon Omega Cannon Hellfire Missile Launcher Advanced Remote Datajack Molecular Deconstructor Core Stripper [Rating: 212] Favorites ----------- Power Antimatter Reactor Engine Heavy Ion Engine Power Core Light Neutrino Core Reactor Antimatter Reactor Propulsion Centrium Wheel Treads Armored Medium Treads Leg Assembled Alloy Leg Wheel Centrium Wheel Flight Unit Advanced Surge Thruster Utility Huge Storage Unit Device Experimental Sensor Array Storage Huge Storage Unit Processor Advanced Signal Interpreter Hackware Advanced Hacking Suite Protection Damper Plating Artifact Phase Redirector Weapon Heavy Phase Cannon Energy Gun Particle Gun Energy Cannon Heavy Phase Cannon Ballistic Gun Advanced KE Penetrator Ballistic Cannon Assault Cannon Launcher Mini Smartbomb Launcher Special Weapon Remote Datajack Impact Weapon Shock Maul Slashing Weapon Axe Piercing Weapon Force Lance Special Melee Weapon Improved Datajack Build | -11 -10 -10 -9 -9 -9 -9 -7 -7 -7 -7 -7 -7 -6 -6 -6 -6 -6 -6 -6 -6 -5 -5 -5 -5 -5 -5 -5 -4 -4 -4 -4 -4 -4 -4 -4 -3 -3 -2 -2 -2 -1 ------- Run | Scr Mat Min Mat Sto Gar Rec Fac Was Fac Low Low Dat Pro Fac Was Fac Low Low Zio Dee Pro Fac Was Fac Upp Upp Zhi Pro Fac Was Fac Ext Cet Arc Hub Res Qua Res Tes Sec Acc Slots Evolved 18 | . . . 2 . . . 4 . . . . . . 2 . . . . . . . 2 . . . . . . 2 . . . . . . 2 . 2 . . 2 Power 2 | . . . . . . . 1 . . . . . . . . . . . . . . . . . . . . . . . . . . . . . . 1 . . . Propulsion 1 | . . . . . . . 1 . . . . . . . . . . . . . . . . . . . . . . . . . . . . . . . . . . Utility 15 | . . . 2 . . . 2 . . . . . . 2 . . . . . . . 2 . . . . . . 2 . . . . . . 2 . 1 . . 2 Weapon . | . . . . . . . . . . . . . . . . . . . . . . . . . . . . . . . . . . . . . . . . . . Parts Attached 1447 | 6 4 5 49 15 28 5 51 14 31 27 12 4 7 76 15 8 6 8 60 48 5 17 8 82 11 9 23 9 102 12 59 50 28 17 96 49 70 56 72 120 73 Power 69 | 1 . . 2 . . . 2 3 . . . . 2 1 2 . . . 2 1 . 2 2 3 3 . 2 2 2 2 1 2 1 1 6 . 4 1 5 4 10 Engine 15 | 1 . . 2 . . . 2 1 . . . . 1 . . . . . 2 1 . 2 . 1 1 . . . . . . . . . . . . . . . 1 Core 5 | . . . . . . . . . . . . . . . . . . . . . . . . . 2 . . . . . . 1 1 . 1 . . . . . . Reactor 49 | . . . . . . . . 2 . . . . 1 1 2 . . . . . . . 2 2 . . 2 2 2 2 1 1 . 1 5 . 4 1 5 4 9 Propulsion 85 | 2 . . 7 . 2 . 1 2 . . 1 . . 6 1 . . 2 2 1 2 2 . 11 3 . 4 2 9 . 2 3 . . 4 1 3 2 . 3 7 Treads 45 | 2 . . 7 . 2 . 1 2 . . 1 . . 6 1 . . 1 2 1 . 2 . 5 3 . 2 . 4 . . . . . . . . . . . 3 Leg 4 | . . . . . . . . . . . . . . . . . . 1 . . . . . . . . . . 1 . . . . . 1 . . 1 . . . Wheel 35 | . . . . . . . . . . . . . . . . . . . . . 2 . . 6 . . 2 2 3 . 2 3 . . 3 1 3 1 . 3 4 Hover . | . . . . . . . . . . . . . . . . . . . . . . . . . . . . . . . . . . . . . . . . . . Flight 1 | . . . . . . . . . . . . . . . . . . . . . . . . . . . . . 1 . . . . . . . . . . . . Utility 637 | 1 2 . 9 6 7 4 15 7 9 17 8 1 1 33 9 1 4 4 22 25 3 9 5 63 1 3 11 3 69 4 22 20 16 8 46 29 21 22 16 45 36 Device 419 | . 1 . 4 1 3 1 4 5 7 15 8 1 1 27 6 1 4 4 12 12 3 7 1 58 1 . 3 2 40 2 21 13 9 7 30 18 17 15 6 20 29 Storage 15 | 1 1 . 3 1 1 3 . . . . . . . . . . . . . 1 . . . . . . 1 . 1 . . . . . 1 . . . . . 1 Processor 16 | . . . 1 . . . . . 1 . . . . 1 . . . . 2 . . 1 . 2 . . . . 1 . . . 1 . 3 . . . . 2 1 Hackware 20 | . . . . . 1 . 5 . . . . . . 1 1 . . . 3 . . 1 1 . . . . . 1 . . 1 . . 1 1 . . . 1 2 Protection 157 | . . . 1 4 2 . 6 2 1 2 . . . 4 2 . . . 5 12 . . 3 3 . 3 7 1 26 2 1 6 6 1 11 10 2 4 10 17 3 Artifact 10 | . . . . . . . . . . . . . . . . . . . . . . . . . . . . . . . . . . . . . 2 3 . 5 . Weapon 656 | 2 2 5 31 9 19 1 33 2 22 10 3 3 4 36 3 7 2 2 34 21 . 4 1 5 4 6 6 2 22 6 34 25 11 8 40 19 42 31 51 68 20 Energy Gun 19 | 1 2 1 5 . . . 2 . . . . . . 2 . . . . . 1 . . . . . . . . 1 . . . . . . . . . 2 2 . Energy Cannon 421 | . . . 10 1 9 . 20 2 15 6 3 . 3 22 1 7 1 2 25 14 . 2 . 3 4 3 3 2 14 3 19 14 5 2 21 17 35 27 41 50 15 Ballistic Gun 20 | 1 . . 2 . . . . . . . . . . . . . . . . . . . . . . . . . . . . . 3 6 6 . . . 1 1 . Ballistic Cannon 25 | . . 2 3 3 1 . . . . . . . . . 1 . . . . . . . . . . . . . . . . . 1 . 1 2 4 4 3 . . Launcher 65 | . . 2 9 2 9 . . . 2 3 . 1 . . . . . . 4 3 . . . 1 . 3 1 . 1 . 11 4 1 . 5 . . . . . 3 Special Weapon 66 | . . . . . . . 2 . . 1 . 1 1 5 1 . 1 . 5 3 . 2 1 1 . . 2 . 4 2 3 6 1 . 7 . 2 . 2 11 2 Impact Weapon 33 | . . . 2 3 . 1 7 . 5 . . 1 . 7 . . . . . . . . . . . . . . . . . . . . . . 1 . 2 4 . Slashing Weapon 4 | . . . . . . . . . . . . . . . . . . . . . . . . . . . . . 2 1 . 1 . . . . . . . . . Piercing Weapon 1 | . . . . . . . . . . . . . . . . . . . . . . . . . . . . . . . 1 . . . . . . . . . . Special Melee Weapon 2 | . . . . . . . 2 . . . . . . . . . . . . . . . . . . . . . . . . . . . . . . . . . . Unidentified Prototypes 37 | . . . 2 1 . . . . . 1 . . . . 1 . . 1 1 3 . . . 1 1 . 4 . 2 . . . 2 . . . 4 . 5 7 1 Corrupted Parts 10 | . . . . . . . 1 . 1 . . . 1 1 . . . . 1 . . . . . . . . 1 . . . . . 3 1 . . . . . . System Corruption 54 | . . . . . . . 1 . 4 . . . 3 3 . . . . 3 . . . . . . . . 6 . . . . . 27 7 . . . . . . Parts Lost 83 | . . . 5 . . . . 2 1 1 . . . 2 . . . . 2 4 . . . 5 1 1 . 1 1 . 2 6 3 . 9 5 . . 1 9 22 Power 15 | . . . 1 . . . . 1 . . . . . . . . . . . 1 . . . 2 1 . . . . . . . 1 . 1 . . . . 2 5 Propulsion 10 | . . . 2 . . . . . . . . . . . . . . . . . . . . . . . . . . . 1 1 . . 1 . . . . . 5 Utility 48 | . . . 1 . . . . 1 1 1 . . . 1 . . . . 2 3 . . . 2 . 1 . 1 1 . 1 2 1 . 4 5 . . 1 7 12 Weapon 10 | . . . 1 . . . . . . . . . . 1 . . . . . . . . . 1 . . . . . . . 3 1 . 3 . . . . . . Highest Loss Streak 8 | . . . 2 . . . . 2 1 1 . . . 2 . . . . 1 3 . . . 2 1 1 . 1 1 . 1 5 1 . 8 4 . . 1 2 7 To Critical Strikes 5 | . . . . . . . . 1 . . . . . . . . . . . . . . . . . . . . . . . . 2 . . . . . . . 2 Average Slot Usage (%) 84 | . 92 100 99 100 100 91 99 75 69 80 76 69 76 73 72 71 72 72 74 86 73 77 82 82 99 95 98 99 89 84 83 88 86 83 85 87 85 86 86 81 78 Engine 2 | . 14 14 10 11 11 11 15 3 . . . . . . . . . . 9 9 . 4 1 . 2 . . . . . . . . . . . . . . . 1 Reactor 7 | . . . . . . . . 9 15 15 15 15 15 12 13 13 13 13 2 1 6 2 9 9 5 5 5 5 4 8 10 8 1 1 8 9 8 13 12 7 5 Treads 10 | . 28 28 22 22 22 22 23 16 15 15 15 15 15 12 13 13 13 12 15 17 5 3 11 9 15 17 12 8 3 . . . . . . . . . . . 1 Wheel 5 | . . . . . . . . . . . . . . . . . . . . . . 5 5 6 1 . 3 7 11 15 14 14 15 15 14 14 14 13 13 13 10 Device 16 | . 2 14 16 11 17 14 21 7 6 16 7 7 7 11 6 12 12 12 13 16 13 16 5 11 28 22 16 15 19 11 14 18 15 16 20 20 20 21 25 23 26 Storage 8 | . 19 14 11 11 11 17 7 7 7 7 7 7 7 6 6 6 6 6 6 9 13 11 11 11 11 11 11 11 10 10 10 10 5 5 5 4 4 4 4 4 4 Processor 5 | . . . 10 11 4 . . . . . . . . 5 6 6 6 6 2 . . 4 5 5 11 11 11 11 10 10 10 10 10 10 11 9 9 8 8 8 8 Hackware 3 | . . . . . . . 2 6 . . . . . 1 5 . . . . . . . 10 5 5 5 5 5 5 8 5 6 10 9 6 13 11 8 8 6 7 Protection 8 | . . . 5 10 11 4 13 6 7 9 15 15 15 7 6 6 6 6 9 15 6 5 4 4 . 1 10 12 6 5 5 5 6 6 4 9 9 7 7 10 5 Energy Cannon 9 | . . . 8 11 19 11 6 2 14 14 14 . 14 8 5 6 9 12 12 12 13 8 5 10 10 8 9 10 8 5 9 6 7 1 5 3 3 3 4 3 3 Naked Turns . | . . . . . . . . . . . . . . . . . . . . . . . . . . . . . . . . . . . . . . . . . . Heaviest Build 295 | 11 31 31 100 100 110 295 131 173 173 172 158 154 158 184 176 176 180 180 184 198 198 204 176 190 136 142 168 146 174 181 188 200 196 174 201 210 193 220 214 208 190 Greatest Support 101 | 40 40 40 43 42 44 44 66 92 92 92 92 90 90 100 100 100 100 100 100 83 80 32 32 101 81 81 81 81 44 44 44 48 48 48 48 48 48 48 48 58 58 Greatest Overweight (x) 98 | . . . 2 2 2 98 1 1 1 1 1 1 1 2 1 1 1 2 2 2 6 6 5 7 3 1 6 6 7 4 4 4 4 3 4 4 4 6 4 5 5 Average Overweight (x) 2 | . . . . 1 1 4 1 1 1 1 1 1 1 1 1 1 1 1 1 1 2 5 4 4 1 1 2 4 3 3 3 3 3 2 3 3 3 4 3 3 2 Largest Inventory Capacity 30 | 8 15 15 25 25 25 30 30 25 25 25 25 25 25 25 25 25 25 25 25 25 25 25 25 25 25 25 25 25 25 25 25 25 25 25 25 25 25 25 25 27 27 Average Capacity 24 | 6 11 15 18 20 24 27 25 25 25 25 25 25 25 25 25 25 25 25 25 24 25 25 25 25 25 25 25 25 25 25 25 25 25 25 25 25 25 25 25 25 27 Most Carried 30 | 6 15 15 25 25 25 30 29 25 25 25 25 25 25 25 25 25 25 25 25 25 25 25 25 25 25 25 25 25 25 25 25 25 25 25 25 25 25 25 25 27 27 Average Carried 24 | 3 7 14 17 20 24 27 24 24 23 24 24 24 24 24 24 24 25 24 24 24 25 24 24 22 24 24 24 24 24 24 24 23 23 24 23 21 24 24 24 24 24 Final Capacity 30 | 8 15 15 25 20 25 30 25 25 25 25 25 25 25 25 25 25 25 25 25 25 25 25 25 25 25 25 25 25 25 25 25 25 25 25 25 25 25 25 25 27 27 Final Carried 30 | 6 15 15 25 20 25 30 25 25 21 25 25 25 25 25 25 25 25 25 25 25 25 25 25 24 24 25 25 25 25 25 21 25 25 25 25 20 25 24 25 25 22 Class Distribution -------------------- 41% | Scavenger-Mutant 34% | Mutant 12% | Generator-Mutant 6% | Bothacker-Mutant Dominant Class ---------------- Mutant | -10/Materials Mutant | -10/Mines Mutant | -9/Materials Mutant | -9/Storage Bothacker-Mutant | -9/Garrison Bothacker-Mutant | -9/Recycling Bothacker-Mutant | -7/Factory Scavenger-Mutant | -7/Waste Scavenger-Mutant | -7/Factory Mutant | -7/Lower Caves Mutant | -7/Lower Caves Scavenger-Mutant | -7/Data Miner Mutant | -6/Proximity Caves Scavenger-Mutant | -6/Factory Scavenger-Mutant | -6/Waste Scavenger-Mutant | -6/Factory Scavenger-Mutant | -6/Lower Caves Scavenger-Mutant | -6/Lower Caves Scavenger-Mutant | -6/Zion Scavenger-Mutant | -6/Deep Caves Mutant | -5/Proximity Caves Mutant | -5/Factory Scavenger-Mutant | -5/Waste Scavenger-Mutant | -5/Factory Mutant | -5/Upper Caves Mutant | -5/Upper Caves Mutant | -5/Zhirov Scavenger-Mutant | -4/Proximity Caves Scavenger-Mutant | -4/Factory Scavenger-Mutant | -4/Waste Mutant | -4/Factory Mutant | -4/Extension Hacker-Mutant | -4/Cetus Hacker-Mutant | -4/Archives Mutant | -4/Hub_04(d) Scavenger-Mutant | -3/Research Scavenger-Mutant | -3/Quarantine Generator-Mutant | -2/Research Generator-Mutant | -2/Testing Generator-Mutant | -2/Section 7 Generator-Mutant | -1/Access Resources | -11 -10 -10 -9 -9 -9 -9 -7 -7 -7 -7 -7 -7 -6 -6 -6 -6 -6 -6 -6 -6 -5 -5 -5 -5 -5 -5 -5 -4 -4 -4 -4 -4 -4 -4 -4 -3 -3 -2 -2 -2 -1 ----------- Run | Scr Mat Min Mat Sto Gar Rec Fac Was Fac Low Low Dat Pro Fac Was Fac Low Low Zio Dee Pro Fac Was Fac Upp Upp Zhi Pro Fac Was Fac Ext Cet Arc Hub Res Qua Res Tes Sec Acc Matter Collected 28981 | 192 . 252 746 462 500 50 521 180 335 170 199 . 228 862 194 . 541 80 729 794 93 180 130 728 187 260 329 65 1120 183 998 861 349 528 2136 1886 2235 1388 2219 4698 1373 Remotely . | . . . . . . . . . . . . . . . . . . . . . . . . . . . . . . . . . . . . . . . . . . Salvage Created 58275 | . . 233 1496 829 836 503 1008 1020 1753 290 135 . 134 1128 1491 . . 175 1755 2601 235 281 1950 2076 200 232 936 167 1601 1115 4431 2683 773 721 3860 3146 2090 1807 3800 7063 3721 Parts 2228 | . . 13 95 56 40 1 41 9 63 21 8 . 3 31 34 . . 1 133 26 8 11 27 110 4 10 35 6 90 20 179 109 42 45 166 103 71 58 147 208 204 Haulers Intercepted 23 | . . . 5 1 . . 1 . 3 . . . . 2 . . . 1 . . . 1 . 2 . . . . . . . 1 . . 1 2 1 . . . 2 Recyclers Shooed 12 | . . . . . . 2 1 . . . . . . . . . . . . . . . . 2 . . . . 1 . . . . . 1 1 . 2 1 . 1 Parts Field Recycled . | . . . . . . . . . . . . . . . . . . . . . . . . . . . . . . . . . . . . . . . . . . Retrieved Matter . | . . . . . . . . . . . . . . . . . . . . . . . . . . . . . . . . . . . . . . . . . . Parts Self-Destructed 83 | . . . . . . . . . . 11 1 . 2 . . . 25 23 . . 8 . . . 4 7 2 . . . . . . . . . . . . . . Prevented 31 | . . . . . . . . . . 10 7 . 1 . . . . 2 . . . . . . 4 1 . 6 . . . . . . . . . . . . . Kills | -11 -10 -10 -9 -9 -9 -9 -7 -7 -7 -7 -7 -7 -6 -6 -6 -6 -6 -6 -6 -6 -5 -5 -5 -5 -5 -5 -5 -4 -4 -4 -4 -4 -4 -4 -4 -3 -3 -2 -2 -2 -1 ------- Run | Scr Mat Min Mat Sto Gar Rec Fac Was Fac Low Low Dat Pro Fac Was Fac Low Low Zio Dee Pro Fac Was Fac Upp Upp Zhi Pro Fac Was Fac Ext Cet Arc Hub Res Qua Res Tes Sec Acc Combat Hostiles Destroyed 703 | . . 12 41 21 21 1 9 3 22 6 2 . 3 10 5 . . 1 6 66 4 2 6 26 2 11 . 2 23 3 52 30 14 4 53 34 27 17 31 77 56 Melee 9 | . . . . . . . 1 3 . . . . . . . . . . . . . . . . . . . . . 3 1 . . . 1 . . . . . . Guns 23 | . . 3 5 . . . . . . . . . . . . . . . . . . . . . . . . . . . . . . . 15 . . . . . . Cannons 296 | . . 3 8 12 11 1 3 . 13 5 1 . 2 5 5 . . 1 2 9 4 2 6 23 1 2 . . 10 . 15 8 4 2 16 14 14 9 22 23 40 AOE 165 | . . 5 28 9 9 . 3 . 4 . . . 1 . . . . . . 35 . . . 1 . 9 . . 4 . 17 8 4 . 10 . . . . 2 16 Classes Destroyed 35 | . . 2 10 2 . 1 2 2 2 . . . . . . . . . 3 3 . . . . 1 . . . 1 . 1 . . . . . 1 . 1 3 . Worker 54 | . . . 1 1 . . 3 . 1 . . . . 3 . . . . . . . 1 . 6 . . . . 1 . 6 2 . . 2 4 3 3 6 4 7 Builder 36 | . . . . 2 . . . . . . . . . 1 . . . . . . . . . 4 . . . . 2 . 3 3 . . 2 4 1 . 5 4 5 Tunneler 4 | . . . 1 . . . . . . . . . . 1 . . . . . . . . . 1 . . . . . . 1 . . . . . . . . . . Hauler 23 | . . . 5 1 . . 1 . 3 . . . . 2 . . . 1 . . . 1 . 2 . . . . . . . 1 . . 1 2 1 . . . 2 Recycler 40 | . . . 3 1 . 8 4 . 2 . . . . 2 . . . . . . . . . . . . . . . . 4 2 . . 2 3 1 4 2 . 2 Minesweeper 1 | . . . . . . . . . . . . . . . . . . . . . . . . . 1 . . . . . . . . . . . . . . . . Mechanic 6 | . . . 3 . . . 1 . . . . . . . . . . . . . . . . . . . . . . . . 1 . . . . . . 1 . . Operator 25 | . . . 1 2 . . 2 . . . . . . . . . . . . . . . . . . . . . . . 1 1 . 9 2 . 4 . 3 . . Drone 2 | . . . . . . 1 . . . . . . . . . . . . . . . . . . . . . . . . . . . . . . . . . . 1 Watcher 42 | . . . 5 2 . . 1 . . . . . . . . . . . . . . 1 . 1 . . . . 6 . 4 . . . 3 3 3 3 3 6 1 Swarmer 80 | . . 6 11 3 7 . . . . 2 . . . . . . . . . . . . . . . 9 . . 4 . 5 . 4 . 5 2 . . . . 22 Saboteur 6 | . . . . . . . . . . . . . . . . . . . . . . . . . . . . . . . 1 . . . 1 . 1 . . 2 1 Grunt 206 | . . 6 18 13 11 . 4 . 11 . . . 2 5 . . . 1 . . . . . 4 1 2 . . . . 19 18 . . 10 16 12 4 10 29 10 Brawler 21 | . . . 2 . 1 . . . 2 . . . 1 . . . . . . . . . . . . . . . . . 5 1 . . 1 1 1 . . 6 . Duelist 9 | . . . . 1 . . . . 1 . . . . . . . . . . . . . . . . . . . . . 1 1 . . 2 1 . . . 1 1 Protector 11 | . . . 1 1 . . . . . . . . . . . . . . . . . . . 1 . . . . . . 1 . . . 4 1 . . . 2 . Researcher 19 | . . . . . . . . . . . . . . . . . . . . . . . . . . . . . . . . . . . . . 2 . 6 11 . Sentry 50 | . . . 9 3 2 . 1 . 1 1 1 . . . . . . . . . . . . . 1 . . . 3 . 4 7 . 4 3 2 . 3 . 4 1 Demolisher 1 | . . . . . . . . . . . . . . . . . . . . . . . . . . . . . . . . 1 . . . . . . . . . Specialist 10 | . . . . . . . . . 2 . . . . . . . . . . . . . . 2 . . . . . . . . . . 6 . . . . . . Hunter 67 | . . . . . . . 1 . 2 2 1 . . . . . . . . . 2 . . 8 . . . 2 4 . 5 1 2 . 2 6 4 3 4 6 12 Programmer 122 | . . . . . . . 4 . 2 1 . . . 5 . . . . . . 2 2 . 10 . . . . 11 . 11 . 2 . 8 5 9 7 16 19 8 Heavy 4 | . . . . . . . . . 1 . . . . . . . . . . . . . . 1 . . . . . . . . . . 2 . . . . . . Behemoth 2 | . . . . . . . . . . . . . . . . . . . . . . . . . . . . . 1 . . 1 . . . . . . . . . Compactor 17 | . . . . . . . . 3 . . . . . . 5 . . . . . . . 6 . . . . . . 3 . . . . . . . . . . . Cetus Guard 6 | . . . . . . . . . . . . . . . . . . . . . . . . . . . . . . . . . 6 . . . . . . . . Enhanced Grunt 8 | . . . . . . . . . . . . . . . . . . . . . . . . . . . 8 . . . . . . . . . . . . . . Lightning 9 | . . . . . . . . . . . . . . . . . . . . . . . . . . . . . . . . . . . 9 . . . . . . Striker 4 | . . . . . . . . . . . . . . . . . . . . . . . . . . . . . . . . . . . . . . . . 4 . Executioner 2 | . . . . . . . . . . . . . . . . . . . . . . . . . . . . . . . . . . . . . . . . 2 . Alpha 7 2 | . . . . . . . . . . . . . . . . . . . . . . . . . . . . . . . . . . . . . . . . 2 . Fortress 1 | . . . . . . . . . . . . . . . . . . . . . . . . . . . . . . . . . . . . . . . 1 . . Zionite 72 | . . . . . . . . . . . . . . . . . . . 72 . . . . . . . . . . . . . . . . . . . . . . Z-Technician 1 | . . . . . . . . . . . . . . . . . . . . 1 . . . . . . . . . . . . . . . . . . . . . Tinkerer 6 | . . . . . . . . . . . . . . . . . . . 6 . . . . . . . . . . . . . . . . . . . . . . Assembler 2 | . . . . . . . . . . . . . . . . . . . . 2 . . . . . . . . . . . . . . . . . . . . . Assembled 43 | . . . . . . . . . . . . . . . . . . . . 43 . . . . . . . . . . . . . . . . . . . . . Golem 23 | . . . . . . . . . . . . . . . . . . . . 23 . . . . . . . . . . . . . . . . . . . . . Surgeon 3 | . . . . . . . . . 2 . . . . . . . . . . . . . . . . . . . . . 1 . . . . . . . . . . Wasp 3 | . . . . . . . . . 2 . . . . . 1 . . . . . . . . . . . . . . . . . . . . . . . . . . Thug 2 | . . . . . . . . . 1 . . . . . . . . . . . . . . . . . . . . 1 . . . . . . . . . . . Martyr 5 | . . . . . . . . 2 . . . . . . 2 . . . . . . . . . . . . . . 1 . . . . . . . . . . . Mutant 6 | . . . . . . . . . . . . . . . . . . . 5 . . . . . . 1 . . . . . . . . . . . . . . . Best Kill Streak 43 | . . 3 14 8 5 3 5 1 4 3 1 . 3 4 2 . . 1 16 43 2 2 1 5 1 5 . 2 6 1 15 11 4 5 11 10 5 5 5 9 12 Combat Bots Only 41 | . . 3 12 7 5 1 4 1 4 3 1 . 3 3 2 . . 1 2 41 2 2 1 4 1 5 . 2 4 1 9 8 7 2 10 8 5 4 4 9 11 Max Kills in Single Turn 13 | . . 2 5 3 3 1 4 1 2 1 1 . 1 1 1 . . 1 2 13 1 1 1 2 1 4 1 1 3 1 4 5 3 1 3 2 2 2 2 2 6 Gunslinging . | . . . . . . . . . . . . . . . . . . . . . . . . . . . . . . . . . . . . . . . . . . Exploded 13 | . . 2 5 3 3 . 3 . 2 . . . 1 . . . . . . 13 . . . 1 . 4 . . 3 . 3 2 3 . 3 . . . . 2 5 Melee 1 | . . . . . . . 1 1 . . . . . . . . . . . . . . . . . . . . . 1 1 . . . 1 . . . . . . Uniques/NPCs Destroyed 1 | . . . . . . . . . . . . . . . . . . . 1 . . . . . . . . . . . . . . . . . . . . . . Imprinter (-6/Zion) Combat | -11 -10 -10 -9 -9 -9 -9 -7 -7 -7 -7 -7 -7 -6 -6 -6 -6 -6 -6 -6 -6 -5 -5 -5 -5 -5 -5 -5 -4 -4 -4 -4 -4 -4 -4 -4 -3 -3 -2 -2 -2 -1 -------- Run | Scr Mat Min Mat Sto Gar Rec Fac Was Fac Low Low Dat Pro Fac Was Fac Low Low Zio Dee Pro Fac Was Fac Upp Upp Zhi Pro Fac Was Fac Ext Cet Arc Hub Res Qua Res Tes Sec Acc Damage Taken 30168 | . . 226 1371 292 406 . 263 324 840 456 240 . 306 1158 . . . . 2285 1039 259 3 . 2777 172 265 2 266 1139 58 1581 1249 723 190 2000 748 542 720 799 3016 4453 Core 3969 | . . 16 193 46 58 . 39 . 33 51 6 . 38 60 . . . . 164 140 17 1 . 80 . 27 . 11 126 58 36 75 32 . 282 42 71 175 54 519 1519 Absorbed by Shields 5633 | . . . . . 6 . 102 14 . . . . . . . . . . . . . . . 64 62 96 . . 1 . . 540 217 . 872 326 525 718 830 914 346 Reduced by Siege Mode 9 | . . . . . . . . . . . . . . 9 . . . . . . . . . . . . . . . . . . . . . . . . . . . Redirected to Core 147 | . . . . . . . . . . . . . . . . . . . . . . . . . . . . . . . . . . . . . . 141 6 . . Redirected to Shielding 873 | . . . . . . . . . . . . . . . . . . . . 135 . . . . . . . . . . . . . . . 85 45 47 23 284 254 Regen/Repaired (Parts) 1347 | . . . . 55 . . . . . . . . . 11 . 119 . . . . . . . . . . . . 87 . . . . . . 191 . 549 62 273 . Core Remaining (%) 67 | 100 . 93 . . . 25 . . . . . . 76 . . . . . . . 55 . . . . . . 79 . . . . . . 47 . 84 . . 44 . Volleys Fired 3500 | . 1 26 99 42 98 . 32 7 51 12 8 3 5 44 119 4 5 5 205 145 16 38 104 134 12 15 45 41 150 61 306 106 60 88 245 145 144 99 222 427 131 Largest 2 | . 1 2 2 2 2 . 2 1 2 2 2 1 2 2 1 2 1 2 2 2 2 2 1 2 2 2 2 2 1 1 2 2 2 1 2 1 1 1 1 1 1 Hottest 180 | . 20 130 136 112 136 . 124 5 160 160 138 5 138 180 90 180 90 180 180 180 50 115 25 115 150 150 150 138 105 81 178 176 176 88 163 90 105 120 120 120 180 Shots Fired 4411 | . 1 47 180 70 153 . 45 7 97 23 15 3 8 79 118 5 6 10 399 227 27 60 104 237 22 17 81 47 150 61 345 125 65 88 316 146 148 99 228 421 131 Gun 374 | . 1 32 86 . . . 14 . . . . . . . . . . . . . . . . . . . . . . . . . . 69 133 . . . . 39 . Cannon 3699 | . . 10 62 64 136 . 28 . 96 23 15 . 5 78 112 5 4 10 391 173 27 59 97 235 22 10 77 47 143 52 290 84 61 19 170 146 146 99 225 363 115 Launcher 178 | . . 5 32 6 17 . . . 1 . . . 2 . . . . . 7 11 . . . . . 7 . . 2 . 54 13 2 . 10 . . . . . 9 Special 160 | . . . . . . . 3 7 . . . 3 1 1 6 . 2 . 1 43 . 1 7 2 . . 4 . 5 9 1 28 2 . 3 . 2 . 3 19 7 Kinetic 329 | . 1 10 21 28 4 . . . . . . . . . . . . . . . . . . . . . . . . . . . 1 69 137 11 20 26 1 . . Thermal 2162 | . . 32 127 36 132 . 12 . 12 4 1 . . 37 112 5 4 10 355 59 27 59 97 235 2 6 5 35 74 . 200 7 15 . 83 27 34 22 119 145 32 Explosive 120 | . . 5 32 6 17 . . . 1 . . . 2 . . . . . 7 11 . . . . . 7 . . 2 . 2 7 2 . 10 . . . . . 9 Electromagnetic 1557 | . . . . . . . 30 . 84 19 14 . 5 41 . . . . 36 114 . . . . 20 4 72 12 69 52 142 83 45 19 83 108 92 51 105 257 . Slashing 83 | . . . . . . . . . . . . . . . . . . . . . . . . . . . . . . . . . . . . . . . . . 83 Robot Hit Streak 36 | . . 7 16 8 22 . 16 4 17 4 3 1 7 11 16 7 9 9 17 36 9 10 24 24 10 5 23 5 19 21 13 28 14 11 19 23 16 15 21 13 17 Robot Miss Streak 6 | . 1 3 6 4 3 . 1 2 2 1 3 2 . 3 5 . 1 2 5 3 1 2 1 2 2 1 2 1 2 2 4 2 2 4 3 2 3 3 5 3 5 Penetration Max 1 | . . . . . . . . . . . . . . . . . . . . . . . . . . . . . . . . . . 1 1 1 1 1 1 1 1 Secondary Targets 1 | . . . . . . . . . . . . . . . . . . . . . . . . . . . . . . . . . . . 1 . . . . . . Max Gunslinging Chain 1 | . . . . . . . . . . . . . . . . . . . . . . . . . . . . . . . . . . . 1 . . . . . . Capacitor 1417 | . . . . . . . . . . . . . . . . . . . . . . . . . . . . . 107 . 36 42 36 19 133 116 126 73 224 402 103 Shots Hit Robots 2603 | . . 26 118 42 75 9 43 22 73 14 9 1 9 57 90 2 2 9 198 155 15 26 89 117 16 6 67 10 75 87 96 89 43 60 209 93 76 44 101 244 86 Core Hits 1497 | . . 16 100 35 34 . 18 3 34 6 1 . 7 12 22 . . 3 88 156 5 5 10 90 5 15 27 2 36 19 105 70 15 26 109 50 33 24 51 86 179 Critical Kills 32 | . . . . . 1 . 2 1 . . . . . 2 . . . . 4 . . . . 1 . . . . 2 . 1 . . 2 14 . . . . 2 . Critical Parts Destroyed 38 | . . . . 1 . 7 2 3 3 . . . . 1 . . . . . . . . . . . . . . . . . . . 11 10 . . . . . . Critical Strikes 188 | . . 3 3 2 1 7 4 6 5 . . . 1 3 . . . . 4 1 . . . 1 . . 1 . 4 1 4 1 . 14 26 12 13 9 14 36 12 Burn 5 | . . 2 3 . . . . . . . . . . . . . . . . . . . . . . . . . . . . . . . . . . . . . . Meltdown 12 | . . . . . 1 . . . . . . . . 1 . . . . 4 . . . . 1 . . . . 2 . 1 . . . . . . . . 2 . Destroy 37 | . . . . . . . . . . . . . . . . . . . . . . . . . . . . . . . . . . 13 24 . . . . . . Blast 6 | . . 1 . 1 . . . . . . . . . . . . . . . . . . . . . . . . . . . . . . . . 3 1 . . . Corrupt 92 | . . . . . . . . . 2 . . . . . . . . . . 1 . . . . . . 1 . 2 1 3 1 . 1 2 12 10 8 14 34 . Smash 24 | . . . . 1 . 7 4 6 3 . . . 1 2 . . . . . . . . . . . . . . . . . . . . . . . . . . . Sever 12 | . . . . . . . . . . . . . . . . . . . . . . . . . . . . . . . . . . . . . . . . . 12 Melee Attacks 161 | . . . 4 4 . 61 11 17 5 . . . 4 14 . . . . . . . . . . . . . . . 35 . . . . . . . . 1 5 . Kinetic 6 | . . . . . . . . . . . . . . . . . . . . . . . . . . . . . . . . . . . . . . . 1 5 . Impact 119 | . . . 4 4 . 61 10 17 5 . . . 4 14 . . . . . . . . . . . . . . . . . . . . . . . . . . . Slashing 35 | . . . . . . . . . . . . . . . . . . . . . . . . . . . . . . 35 . . . . . . . . . . . Piercing . | . . . . . . . . . . . . . . . . . . . . . . . . . . . . . . . . . . . . . . . . . . Sneak Attacks 81 | . . . . 1 . 7 10 17 4 . . . . 7 . . . . . . . . . . . . . . . 35 . . . . . . . . . . . Combat Hostiles 41 | . . . . . . . 1 14 . . . . . . . . . . . . . . . . . . . . . 26 . . . . . . . . . . . Follow-up Attacks . | . . . . . . . . . . . . . . . . . . . . . . . . . . . . . . . . . . . . . . . . . . Damage Inflicted 134853 | . . 718 4589 1718 2515 899 2492 1777 3200 379 244 . 575 2441 3102 84 . 313 7454 6521 756 1064 3764 6115 488 1287 1390 307 3854 1808 8741 5332 1860 1770 9221 7118 5589 3809 6222 13892 11445 Guns 5429 | . . 256 878 . . . 224 . . . . . . . . . . . . . . . . . . . . . . . . . . 1211 2559 . . . . 301 . Cannons 94379 | . . 156 958 844 1627 . 628 . 2042 379 244 . 87 1734 3102 84 . 313 6321 3647 756 1064 3764 5148 454 130 1219 307 3270 181 3351 2224 1426 559 4521 6783 5545 3711 6222 13178 8400 Explosions 28157 | . . 299 2746 824 888 . 528 . 696 . . . 341 . . . . . 1133 2842 . . . 890 34 1157 171 . 584 110 5390 3108 434 . 2141 335 44 98 . 319 3045 Melee 6692 | . . . . 50 . 897 1056 1777 462 . . . 147 695 . . . . . . . . . . . . . . . 1517 . . . . . . . . . 91 . Ramming 196 | . . 7 7 . . 2 56 . . . . . . 12 . . . . . 32 . . . 77 . . . . . . . . . . . . . . . 3 . Kinetic 9540 | . . 156 250 414 51 . . . . . . . . . . . . . . . . . . . . . . . . . . . . 1211 2959 716 1756 1833 103 91 . Thermal 45374 | . . 256 1586 430 1576 . 804 . 920 93 . . . 817 3102 84 . 313 5680 1026 756 1064 3764 5148 34 67 384 . 1881 73 2991 988 430 . 1842 1152 580 . 2481 4698 354 Explosive 18195 | . . 299 2746 824 888 . . . 20 . . . 341 . . . . . 1067 2842 . . . . . 1157 . . 449 . 376 1566 434 . 2141 . . . . . 3045 Electromagnetic 46901 | . . . . . . . 576 . 1798 286 244 . 87 917 . . . . 707 2621 . . . 890 454 63 1006 307 1524 218 5374 2778 996 559 2279 5250 3253 1976 3638 9100 . Impact 5084 | . . . . 50 . 897 1056 1777 462 . . . 147 695 . . . . . . . . . . . . . . . . . . . . . . . . . . . Slashing 9563 | . . . . . . . . . . . . . . . . . . . . . . . . . . . . . . 1517 . . . . . . . . . . 8046 Piercing . | . . . . . . . . . . . . . . . . . . . . . . . . . . . . . . . . . . . . . . . . . . Highest Corruption 19 | . . . . . . . 1 1 4 2 1 1 4 4 4 4 4 . 3 . . . 2 2 1 . . 6 . . 2 4 4 13 19 3 7 4 11 17 1 Average Corruption 5 | . . . . . . . 1 1 3 1 1 1 1 3 4 4 3 . 2 . . . 1 1 1 . . 6 . . 1 2 4 5 8 2 5 1 7 14 1 Corruption Purged 52 | . . . . . . . . 1 4 1 . . . . . . 4 . 3 . . . . 4 1 . . . . . . . . 27 . . . 7 . . . Corruption Blocked 409 | . . . . . . . . . . . . . . . . . . . . . . . . . . . . . . . . . 8 . . . 30 . 140 231 . Effects 668 | . . . . . . . 2 . 8 4 15 3 14 41 23 16 34 . 4 . . . 1 6 1 . . . . . 14 27 10 18 73 5 69 8 110 155 7 Message Errors 165 | . . . . . . . 1 . 1 1 4 . 5 10 6 5 8 . 2 . . . . 1 1 . . . . . 6 6 3 10 14 1 14 2 27 37 . Matter Fused 173 | . . . . . . . 1 . 2 1 6 2 4 9 4 4 13 . . . . . . 1 . . . . . . 5 8 4 2 21 1 17 2 30 33 3 Heat Flow Errors 76 | . . . . . . . . . 1 1 1 . 2 8 5 1 3 . 1 . . . . . . . . . . . . 4 1 1 5 . 6 1 8 25 2 Energy Discharges 76 | . . . . . . . . . 1 . 4 1 1 5 3 3 5 . 1 . . . . 3 . . . . . . 1 3 1 . 9 . 8 2 13 12 . Parts Rejected 3 | . . . . . . . . . . . . . . . . . . . . . . . . . . . . . . . . 2 . . . . . . . 1 . Data Loss (minor) 75 | . . . . . . . . . 2 . . . 1 3 1 2 2 . . . . . 1 . . . . . . . 1 2 . 1 11 1 14 . 18 14 1 Data Loss (major) 29 | . . . . . . . . . . 1 . . . 4 1 1 1 . . . . . . . . . . . . . . . . 1 2 1 2 1 4 9 1 Misfires 33 | . . . . . . . . . . . . . 1 . 1 . 1 . . . . . . . . . . . . . . 2 1 1 4 1 6 . 7 8 . Alerts 9 | . . . . . . . . . . . . . . 2 . . 1 . . . . . . . . . . . . . . . . 1 2 . . . 2 1 . Misdirections 1 | . . . . . . . . . . . . . . . . . . . . . . . . . . . . . . . . . . . . . . . . 1 . Weapon Failures 28 | . . . . . . . . . 1 . . . . . 2 . . . . . . . . 1 . . . . . . 1 . . 1 5 . 2 . 1 14 . Overload Shots . | . . . . . . . . . . . . . . . . . . . . . . . . . . . . . . . . . . . . . . . . . . Overflow Damage 7892 | . . 3 12 57 4 920 553 635 419 . . . . 355 11 . . . 155 273 60 33 . 220 11 21 8 . 143 55 392 98 148 6 340 606 436 338 357 755 468 Projectiles 4007 | . . . 11 7 2 78 46 . 17 . . . . 46 11 . . . 104 94 60 33 . 220 11 . 8 . 95 . 143 23 96 6 301 606 436 338 357 755 103 Explosions 1093 | . . 3 1 . 2 . . . 30 . . . . . . . . . 51 157 . . . . . 21 . . 48 . 249 75 52 . 39 . . . . . 365 Melee 2792 | . . . . 50 . 842 507 635 372 . . . . 309 . . . . . 22 . . . . . . . . . 55 . . . . . . . . . . . Knockbacks 48 | . . . . 3 . 4 4 3 1 . . . . 3 . . . . . . . . . . . . . . . . . . . . . 6 12 12 . . . Impact 14 | . . . . . . 3 4 3 1 . . . . 3 . . . . . . . . . . . . . . . . . . . . . . . . . . . Kinetic 29 | . . . . 3 . . . . . . . . . . . . . . . . . . . . . . . . . . . . . . . 5 10 11 . . . Secondary 5 | . . . . . . 1 . . . . . . . . . . . . . . . . . . . . . . . . . . . . . 1 2 1 . . . Self-Inflicted Damage 952 | . . . 190 . 16 . 51 . 101 . . . 30 . . . . . 60 219 . . . 88 . 51 . . 61 . 53 . . . 31 . . . . 1 . Shots 24 | . . . 8 . 1 . 1 . 2 . . . 1 . . . . . 1 5 . . . 1 . 1 . . 1 . 1 . . . 1 . . . . . . Rammed 16 | . . 1 2 . . 1 2 . . . . . . . . . . . . 1 . . . 7 . . . . . . . . . . 1 . . . . 1 . Targets Rammed 19 | . . 1 2 . . 1 4 . . . . . . 1 . . . . . 1 . . . 7 . . . . . . . . . . 1 . . . . 1 . Kicked . | . . . . . . . . . . . . . . . . . . . . . . . . . . . . . . . . . . . . . . . . . . Crushed 3 | . . . . . . . 2 . . . . . . 1 . . . . . . . . . . . . . . . . . . . . . . . . . . . Highest Temperature 453 | . . 36 51 7 328 . 28 . 324 211 257 . 156 439 427 233 249 240 300 99 36 327 164 279 . . 66 126 348 84 330 305 339 304 313 260 190 264 369 301 453 Average Temperature 80 | . . 13 10 3 100 . 5 . 110 58 82 . 60 73 105 64 103 96 96 44 16 103 53 83 . . 17 26 76 40 68 93 98 139 88 74 45 67 105 85 117 Received Heat Transfer 3405 | . . 111 492 141 185 . 6 . 201 24 42 . 81 435 . . . . 233 96 . . . 66 36 42 . . 27 . 370 220 4 18 187 58 12 . 16 196 106 Effects 20 | . . . . . 3 . . . 1 3 1 . . 5 . . 1 . 1 . . 1 . . . . . . 1 . . 1 . . . . . . 1 . 1 Shutdowns 1 | . . . . . . . . . . . . . . . . . . . . . . . . . . . . . . . . . . . . . . . 1 . . Energy Bleed 4 | . . . . . . . . . . . . . . 1 . . 1 . . . . . . . . . . . 1 . . . . . . . . . . . 1 Interference 12 | . . . . . 3 . . . . 3 1 . . 4 . . . . . . . . . . . . . . . . . 1 . . . . . . . . . Matter Decay 1 | . . . . . . . . . . . . . . . . . . . 1 . . . . . . . . . . . . . . . . . . . . . . Short Circuit 1 | . . . . . . . . . . . . . . . . . . . . . . 1 . . . . . . . . . . . . . . . . . . . Damage (minor) 1 | . . . . . . . . . 1 . . . . . . . . . . . . . . . . . . . . . . . . . . . . . . . . Siege Activations 3 | . . . . . . . . . . . . . . 3 . . . . . . . . . . . . . . . . . . . . . . . . . . . Total Turns 31 | . . . . . . . . . . . . . . 31 . . . . . . . . . . . . . . . . . . . . . . . . . . . Longest Duration 27 | . . . . . . . . . . . . . . 27 . . . . . . . . . . . . . . . . . . . . . . . . . . . Robots Corrupted 228 | . . . . . . . 2 . 6 1 1 . . 5 . . . . 4 19 . . . 1 2 . 8 2 7 . 21 14 6 2 12 23 17 9 13 53 . Combat Hostiles 195 | . . . . . . . 2 . 5 1 1 . . 4 . . . . 4 19 . . . 1 1 . . 2 6 . 19 14 6 2 11 20 13 8 8 48 . Parts Fried 461 | . . . . 1 . 8 12 3 20 1 2 . . 16 . . . 1 11 . . . . 4 3 . 17 2 15 1 38 25 10 5 29 53 43 18 38 85 . Impact Corruptions 56 | . . . . 3 . 18 9 10 7 . . . . 6 . . . . . 1 . . . . . . . . . . . . . . . 1 1 . . . . Robots Melted 14 | . . 1 . . 1 . . . . . . . . 1 . . . . 4 . . . . 1 . . . . 3 . 1 . . . . . . . . 2 . Combat Hostiles 9 | . . 1 . . 1 . . . . . . . . 1 . . . . . . . . . 1 . . . . 3 . . . . . . . . . . 2 . Parts Melted 101 | . . 4 4 1 8 . 4 . 3 1 . . . 3 . . . 2 12 . 1 1 . 9 . . . . 7 . 4 2 1 . 6 2 . . 6 20 . Heat Transferred 43093 | . . 777 3589 768 2811 . 750 . 850 150 . . . 740 3330 74 . 333 6023 1228 375 769 2125 3746 50 74 297 . 1617 50 2511 961 370 . 1813 940 531 . 1850 3332 259 Parts Sabotaged 4 | . . . . . . . . . . . . . . . . . . . . . . . . 2 . . . . . . . . . . 2 . . . . . . Parts Stolen . | . . . . . . . . . . . . . . . . . . . . . . . . . . . . . . . . . . . . . . . . . . Parts Stripped . | . . . . . . . . . . . . . . . . . . . . . . . . . . . . . . . . . . . . . . . . . . Power Chain Reactions 32 | . . . . . . . 1 . 4 . . . . . . . . . 1 . . . . . 1 . 2 . 1 2 9 6 . . . 2 1 . . 2 . Missiles Intercepted . | . . . . . . . . . . . . . . . . . . . . . . . . . . . . . . . . . . . . . . . . . . Alert | -11 -10 -10 -9 -9 -9 -9 -7 -7 -7 -7 -7 -7 -6 -6 -6 -6 -6 -6 -6 -6 -5 -5 -5 -5 -5 -5 -5 -4 -4 -4 -4 -4 -4 -4 -4 -3 -3 -2 -2 -2 -1 ------- Run | Scr Mat Min Mat Sto Gar Rec Fac Was Fac Low Low Dat Pro Fac Was Fac Low Low Zio Dee Pro Fac Was Fac Upp Upp Zhi Pro Fac Was Fac Ext Cet Arc Hub Res Qua Res Tes Sec Acc Peak Influence 2651 | . 30 284 1224 1000 1532 835 1241 294 632 . . . . 154 35 258 . . . . . 76 45 665 . . . . 376 136 1850 1551 914 568 1199 1543 1042 413 817 1931 2651 Initial 1152 | . . 11 52 516 634 689 1144 294 . . . . . . 8 . . . . . . . 21 . . . . . . 121 . 1100 567 285 76 629 865 389 145 448 1152 Average 521 | . 22 123 476 840 1226 644 963 144 269 . . . . 36 12 37 . . . . . 27 15 302 . . . . 207 64 701 1123 725 417 501 1159 614 203 346 735 1492 Maximum Alert Level 5 | . . 1 4 3 4 3 4 1 2 . . . . . . 1 . . . . . . . 2 . . . . 1 . 5 4 3 2 4 4 3 2 3 5 5 Low Security (%) 34 | 100 100 72 8 . . . . 59 37 . . . . 100 100 92 . . . . . 100 100 54 . . . . 45 100 20 . . . 38 . 9 41 32 22 . Level 1 17 | . . 27 53 . . . . 40 41 . . . . . . 7 . . . . . . . 3 . . . . 54 . 9 . . 60 8 . 17 54 36 2 . Level 2 17 | . . . 22 25 5 71 . . 21 . . . . . . . . . . . . . . 42 . . . . . . 37 . 57 39 13 9 29 3 16 31 . Level 3 15 | . . . 2 74 27 28 72 . . . . . . . . . . . . . . . . . . . . . . . 4 37 42 . 30 42 44 . 15 18 19 Level 4 12 | . . . 13 . 66 . 27 . . . . . . . . . . . . . . . . . . . . . . . 19 62 . . 9 48 . . . 19 35 Level 5 1 | . . . . . . . . . . . . . . . . . . . . . . . . . . . . . . . 7 . . . . . . . . 5 22 High Security . | . . . . . . . . . . . . . . . . . . . . . . . . . . . . . . . 1 . . . . . . . . . 21 Max Security . | . . . . . . . . . . . . . . . . . . . . . . . . . . . . . . . . . . . . . . . . . . Squads Dispatched 166 | . 1 . 6 5 . . 3 . 9 . . . . 5 . 1 . . . . . 3 . 7 . . . . 7 . 15 7 . . 13 16 9 7 10 24 18 Investigation 12 | . . . 1 . . . . . 1 . . . . 1 . . . . . . . . . . . . . . . . 1 . . . 1 2 . 2 1 . 2 Extermination 56 | . . . . . . . 2 . 2 . . . . 4 . 1 . . . . . 1 . 4 . . . . 4 . 6 . . . 4 3 3 3 8 9 2 Reinforcement 31 | . 1 . 2 1 . . 1 . 3 . . . . . . . . . . . . 2 . 3 . . . . 3 . 1 1 . . 4 2 2 1 . 2 2 Assault 62 | . . . 3 2 . . . . 1 . . . . . . . . . . . . . . . . . . . . . 7 6 . . 4 8 4 1 1 13 12 Garrison 5 | . . . . 2 . . . . 2 . . . . . . . . . . . . . . . . . . . . . . . . . . 1 . . . . . Intercept . | . . . . . . . . . . . . . . . . . . . . . . . . . . . . . . . . . . . . . . . . . . Searches Triggered 3 | . . . . . . . 3 . . . . . . . . . . . . . . . . . . . . . . . . . . . . . . . . . . Data Miner Redirects 30 | . . . . . . . . . . . . . . . . . . . . . . . . . . . . . . . 4 5 . . 2 3 4 1 1 7 3 Construction Impeded 6 | . . . 1 . . . . . . . . . . . . . . . . . . . . . . . . . 2 . . . . . . . . 1 . . 2 Haulers Reinforced 7 | . . . . . . . 1 . 1 . . . . . . . . . . . . 1 . 1 . . . . . . 1 . . . . 2 . . . . . Active Scanning Responses . | . . . . . . . . . . . . . . . . . . . . . . . . . . . . . . . . . . . . . . . . . . Cargo Convoy Interrupts 2 | . . . . . . . . . . . . . . 1 . . . . . . . . . 1 . . . . . . . . . . . . . . . . . Stealth | -11 -10 -10 -9 -9 -9 -9 -7 -7 -7 -7 -7 -7 -6 -6 -6 -6 -6 -6 -6 -6 -5 -5 -5 -5 -5 -5 -5 -4 -4 -4 -4 -4 -4 -4 -4 -3 -3 -2 -2 -2 -1 --------- Run | Scr Mat Min Mat Sto Gar Rec Fac Was Fac Low Low Dat Pro Fac Was Fac Low Low Zio Dee Pro Fac Was Fac Upp Upp Zhi Pro Fac Was Fac Ext Cet Arc Hub Res Qua Res Tes Sec Acc Distress Signals 25 | . . . 1 3 . . . . . . . . . . . . . . . . . . . . . . . . 1 . 1 5 2 . 2 1 . 1 1 2 5 Communications Jammed 215 | . . . . . . . 1 . . . . . . 2 . . . . . . . 1 . 40 . . . . 1 . 20 29 . . 30 4 1 9 3 74 . Distress Signals 170 | . . . . . . . 1 . . . . . . . . . . . . . . 1 . 28 . . . . . . 20 29 . . 24 4 1 9 3 50 . Times Spotted 1222 | . 2 14 57 38 17 98 18 5 27 6 2 . 3 14 6 2 7 9 88 68 4 5 6 43 2 13 2 2 25 5 79 54 18 26 76 39 32 17 39 118 136 Peak Tracking Total 37 | . 2 4 12 7 4 7 4 3 3 3 1 . 3 4 2 2 3 4 7 37 2 1 1 14 1 5 3 2 3 2 11 9 5 1 7 9 5 4 4 21 18 Tactical Retreats 71 | . . 2 1 3 2 . 1 . . . . . . 3 . 1 . . 8 6 . . . 4 . . . . 1 . 5 2 . . 2 2 5 3 5 7 8 Traps | -11 -10 -10 -9 -9 -9 -9 -7 -7 -7 -7 -7 -7 -6 -6 -6 -6 -6 -6 -6 -6 -5 -5 -5 -5 -5 -5 -5 -4 -4 -4 -4 -4 -4 -4 -4 -3 -3 -2 -2 -2 -1 ------- Run | Scr Mat Min Mat Sto Gar Rec Fac Was Fac Low Low Dat Pro Fac Was Fac Low Low Zio Dee Pro Fac Was Fac Upp Upp Zhi Pro Fac Was Fac Ext Cet Arc Hub Res Qua Res Tes Sec Acc Traps Triggered 24 | . . . . . 6 . 2 . 1 . . . . 1 . . . . . . . 2 . . . . . . 2 . 3 1 . . 1 1 2 . 1 . 1 Indirectly 2 | . . . . . . . . . . . . . . . . . . . . . . . . . . . . . . . 2 . . . . . . . . . . Trap Hack Attempts 10 | . . . . . . . 10 . . . . . . . . . . . . . . . . . . . . . . . . . . . . . . . . . . Triggered . | . . . . . . . . . . . . . . . . . . . . . . . . . . . . . . . . . . . . . . . . . . Disarmed 7 | . . . . . . . . . . . . . . . . . . . . . . . . . . . . . . . . 7 . . . . . . . . . Reprogrammed 15 | . . . . . . . 3 . . . . . . . . . . . . . . . . . . . . . . . 6 . . . . . . . . 6 . Reused 6 | . . . . . . . 1 . . . . . . . . . . . . . . . . . . . 1 . . . 4 . . . . . . . . . . Traps Extracted . | . . . . . . . . . . . . . . . . . . . . . . . . . . . . . . . . . . . . . . . . . . Installed 3 | . . . . . . . . . . . . . . . . . . . . . . . . . . . 3 . . . . . . . . . . . . . . Triggered 11 | . . . . . . . 1 . . . . . . 1 . . . 2 . . 1 . . . 1 . . . . . 5 . . . . . . . . . . Most Traps Carried 3 | . . . . . . . . . . . . . . . . . . . . . . . . . 3 3 3 . . . . . . . . . . . . . . Machines | -11 -10 -10 -9 -9 -9 -9 -7 -7 -7 -7 -7 -7 -6 -6 -6 -6 -6 -6 -6 -6 -5 -5 -5 -5 -5 -5 -5 -4 -4 -4 -4 -4 -4 -4 -4 -3 -3 -2 -2 -2 -1 ---------- Run | Scr Mat Min Mat Sto Gar Rec Fac Was Fac Low Low Dat Pro Fac Was Fac Low Low Zio Dee Pro Fac Was Fac Upp Upp Zhi Pro Fac Was Fac Ext Cet Arc Hub Res Qua Res Tes Sec Acc Machines Disabled 177 | . . 1 4 2 6 1 6 . 8 1 . . . . . . . . 3 2 . 1 . 16 . . 1 . 5 . 21 5 4 4 13 4 12 4 22 25 6 Max in Single Turn 5 | . . 1 1 1 1 1 4 . 4 1 . . . . . . . . 1 1 . 1 . 4 . . 1 . 2 . 5 2 1 1 4 2 2 2 2 1 1 Garrison Access 14 | . . . . . . . . . 2 . . . . 1 . . . . . . . . . . . . . . 1 . 2 . . . 2 1 1 1 1 1 1 Garrison Relay 5 | . . . . . 5 . . . . . . . . . . . . . . . . . . . . . . . . . . . . . . . . . . . . Network Hub 4 | . . . . . . . . . . . . . . . . . . . . . . . . . . . . . . . . . . . 4 . . . . . . Machines Sabotaged . | . . . . . . . . . . . . . . . . . . . . . . . . . . . . . . . . . . . . . . . . . . Garrisons Compromised 1 | . . . . . . . . . . . . . . 1 . . . . . . . . . . . . . . . . . . . . . . . . . . . Overloaded Fab Kills . | . . . . . . . . . . . . . . . . . . . . . . . . . . . . . . . . . . . . . . . . . . Hacking | -11 -10 -10 -9 -9 -9 -9 -7 -7 -7 -7 -7 -7 -6 -6 -6 -6 -6 -6 -6 -6 -5 -5 -5 -5 -5 -5 -5 -4 -4 -4 -4 -4 -4 -4 -4 -3 -3 -2 -2 -2 -1 --------- Run | Scr Mat Min Mat Sto Gar Rec Fac Was Fac Low Low Dat Pro Fac Was Fac Low Low Zio Dee Pro Fac Was Fac Upp Upp Zhi Pro Fac Was Fac Ext Cet Arc Hub Res Qua Res Tes Sec Acc Machines Accessed 187 | . 2 . 7 3 . 14 8 . 7 1 . 4 . 9 . 5 2 2 . . . 7 . 5 1 . 5 . 15 . 19 7 2 . 9 6 9 9 11 14 4 Terminals 106 | . 2 . 4 1 . 6 6 . 5 . . . . 3 . 3 . . . . . 5 . 3 . . . . 8 . 12 7 2 . 7 2 6 3 7 13 1 Fabricators 7 | . . . . . . . . . . . . . . 2 . . . . . . . . . . . . . . 1 . 1 . . . . . . 1 1 . 1 Repair Stations 14 | . . . 1 1 . . . . 1 . . . . 1 . 2 . . . . . . . . . . . . 1 . . . . . . 1 1 2 1 1 1 Recycling Units 22 | . . . . . . 8 1 . . . . . . 2 . . . . . . . 2 . 2 . . . . 2 . 3 . . . . 1 . 1 . . . Scanalyzers 10 | . . . 2 . . . 1 . . . . . . . . . . . . . . . . . . . . . 1 . 1 . . . . 1 1 2 1 . . Garrison Access 13 | . . . . 1 . . . . 1 . . . . 1 . . . . . . . . . . . . . . 2 . 2 . . . 2 1 1 . 1 . 1 Total Hacks 630 | . 2 . 18 9 . 32 16 . 12 1 . 31 . 17 . 14 4 10 . . . 13 . 9 1 . 18 . 34 . 44 22 3 . 23 42 57 58 55 71 14 Successful 375 | . . . 9 5 . 12 8 . 3 1 . 31 . 10 . 8 4 10 . . . 7 . 5 1 . 18 . 19 . 29 16 1 . 12 22 26 38 36 38 6 Failed 255 | . 2 . 9 4 . 20 8 . 9 . . . . 7 . 6 . . . . . 6 . 4 . . . . 15 . 15 6 2 . 11 20 31 20 19 33 8 Catastrophic 32 | . 2 . 3 . . 1 2 . 3 . . . . 1 . 2 . . . . . 1 . 1 . . . . . . 1 1 . . 2 1 3 1 1 4 2 Database Lockouts . | . . . . . . . . . . . . . . . . . . . . . . . . . . . . . . . . . . . . . . . . . . Manual 236 | . 2 . 5 1 . 25 2 . 7 1 . . . 4 . 4 . . 4 . . 6 . 1 . . . . 9 . 21 11 . . 14 12 30 22 14 36 5 Terminals 390 | . 2 . 9 2 . 21 11 . 10 . . . . 4 . 10 . . . . . 8 . 7 . . . . 21 . 32 22 3 . 21 30 50 27 35 61 4 Fabricators 27 | . . . . . . . . . . . . . . 6 . . . . . . . . . . . . . . 1 . 3 . . . . . . 6 8 . 3 Repair Stations 62 | . . . 2 6 . . . . 1 . . . . 3 . 4 . . . . . . . . . . . . 2 . . . . . . 3 4 15 7 10 5 Recycling Units 40 | . . . . . . 11 2 . . . . . . 3 . . . . . . . 5 . 2 . . . . 4 . 4 . . . . 5 . 4 . . . Scanalyzers 28 | . . . 7 . . . 3 . . . . . . . . . . . . . . . . . . . . . 2 . 2 . . . . 3 1 6 4 . . Garrison Access 18 | . . . . 1 . . . . 1 . . . . 1 . . . . . . . . . . . . . . 4 . 3 . . . 2 1 2 . 1 . 2 Terminal Hacks 211 | . . . 4 1 . 5 4 . . 1 . 31 . . . 3 4 10 . . . 3 . 2 1 . 18 . 8 . 13 13 1 . 7 9 17 12 19 25 . Record 33 | . . . . . . . 2 . . . . 11 . . . . 3 9 . . . . . . . . 6 . . . . . 1 . . . 1 . . . . Part Schematic 22 | . . . . . . 1 . . . . . 12 . . . . . . . . . . . . . . 4 . . . . . . . . 1 . 1 2 1 . Robot Schematic 8 | . . . . . . 2 . . . . . 5 . . . . . . . . . . . . . . . . . . . . . . . . . . 1 . . Robot Analysis 10 | . . . 1 . . 1 . . . . . . . . . . . . . . . . . . . . 4 . . . . . . . 2 . 2 . . . . Prototype ID Bank 29 | . . . 2 1 . 1 1 . . . . 3 . . . . . . . . . . . . . . 4 . 1 . 1 1 . . 2 . 3 1 5 3 . Open Door 8 | . . . . . . . . . . 1 . . . . . . 1 1 . . . . . . 1 . . . . . . . . . . . . . . 4 . Open DSF 2 | . . . . . . . . . . . . . . . . . . . . . . 2 . . . . . . . . . . . . . . . . . . . Level Access Points 1 | . . . . . . . . . . . . . . . . . . . . . . . . . . . . . . . . . . . . . . . . 1 . Branch Access Points 5 | . . . . . . . . . . . . . . . . 1 . . . . . . . 1 . . . . . . 1 . . . . 1 . 1 . . . Emergency Access Points 3 | . . . . . . . . . . . . . . . . 1 . . . . . . . . . . . . . . . . . . . . . 1 . 1 . Terminal Index 3 | . . . . . . . . . . . . . . . . . . . . . . . . . . . . . . . 1 1 . . . . . . . 1 . Scanalyzer Index 1 | . . . . . . . . . . . . . . . . . . . . . . . . . . . . . . . . . . . . . . . 1 . . Unreport Threat 26 | . . . . . . . . . . . . . . . . . . . . . . . . . . . . . 1 . 4 6 . . 1 . 5 3 2 4 . Locate Traps 16 | . . . . . . . . . . . . . . . . . . . . . . . . . . . . . 4 . 3 2 . . 1 . 1 . 1 4 . Disarm Traps 2 | . . . . . . . . . . . . . . . . . . . . . . . . . . . . . . . . 2 . . . . . . . . . Reprogram Traps 2 | . . . . . . . . . . . . . . . . . . . . . . . . . . . . . . . 1 . . . . . . . . 1 . Transport Status 1 | . . . . . . . . . . . . . . . . . . . . . . . . . . . . . . . . . . . . 1 . . . . . Recall Extermination 3 | . . . . . . . . . . . . . . . . . . . . . . . . . . . . . . . . . . . . . . 1 1 1 . Recall Reinforcements 1 | . . . . . . . . . . . . . . . . . . . . . . . . . . . . . . . . . . . . . . . 1 . . Recall Assault 4 | . . . . . . . . . . . . . . . . . . . . . . . . . . . . . . . . 1 . . . 2 1 . . . . Hauler Manifests 13 | . . . 1 . . . 1 . . . . . . . . 1 . . . . . 1 . 1 . . . . 1 . 1 . . . 1 1 1 1 1 1 . Registered Components 6 | . . . . . . . . . . . . . . . . . . . . . . . . . . . . . . . 1 . . . . 1 1 1 1 1 . Registered Prototypes 3 | . . . . . . . . . . . . . . . . . . . . . . . . . . . . . . . . . . . . 1 . 1 1 . . Zone Layout 8 | . . . . . . . . . . . . . . . . . . . . . . . . . . . . . 1 . . . . . . 1 2 1 2 1 . Activate Exoskeleton 1 | . . . . . . . . . . . . . . . . . . . . . . . . . . . . . . . . . . . . . . . . 1 . Fabricator Hacks 14 | . . . . . . . . . . . . . . 4 . . . . . . . . . . . . . . 1 . 1 . . . . . . 3 2 . 3 Network Status 5 | . . . . . . . . . . . . . . . . . . . . . . . . . . . . . 1 . 1 . . . . . . 1 1 . 1 Load Schematic 5 | . . . . . . . . . . . . . . 2 . . . . . . . . . . . . . . . . . . . . . . . 1 1 . 1 Build 4 | . . . . . . . . . . . . . . 2 . . . . . . . . . . . . . . . . . . . . . . . 1 . . 1 Repair Station Hacks 37 | . . . 1 3 . . . . 1 . . . . 2 . 3 . . . . . . . . . . . . 2 . . . . . . 3 1 9 3 8 1 Scan Component 23 | . . . 1 2 . . . . 1 . . . . 1 . 2 . . . . . . . . . . . . 1 . . . . . . 2 1 5 2 4 1 Repair 14 | . . . . 1 . . . . . . . . . 1 . 1 . . . . . . . . . . . . 1 . . . . . . 1 . 4 1 4 . Recycling Unit Hacks 15 | . . . . . . . 1 . . . . . . 2 . . . . . . . 1 . 2 . . . . 2 . 3 . . . . 2 . 2 . . . Report Inventory 1 | . . . . . . . . . . . . . . . . . . . . . . . . . . . . . . . 1 . . . . . . . . . . Retrieve Matter 1 | . . . . . . . . . . . . . . . . . . . . . . . . . . . . . . . . . . . . . . 1 . . . Retrieve Components 13 | . . . . . . . 1 . . . . . . 2 . . . . . . . 1 . 2 . . . . 2 . 2 . . . . 2 . 1 . . . Scanalyzer 19 | . . . 3 . . . 3 . . . . . . . . . . . . . . . . . . . . . . . 1 . . . . 3 1 5 3 . . Insert Component 13 | . . . 2 . . . 1 . . . . . . . . . . . . . . . . . . . . . . . 1 . . . . 3 1 3 2 . . Analyze 6 | . . . 1 . . . 2 . . . . . . . . . . . . . . . . . . . . . . . . . . . . . . 2 1 . . Garrison Access Hacks 11 | . . . . 1 . . . . 1 . . . . 1 . . . . . . . . . . . . . . 2 . 1 . . . 2 . 1 . 1 . 1 Unlock Access 1 | . . . . 1 . . . . . . . . . . . . . . . . . . . . . . . . . . . . . . . . . . . . . Seal Access 9 | . . . . . . . . . 1 . . . . 1 . . . . . . . . . . . . . . 1 . 1 . . . 2 . 1 . 1 . 1 Coupler Status 1 | . . . . . . . . . . . . . . . . . . . . . . . . . . . . . 1 . . . . . . . . . . . . Unauthorized Hacks 68 | . . . 1 . . 7 . . 1 . . . . 1 . 2 . . . . . 3 . 1 . . . . 4 . 10 3 . . 3 5 6 7 8 5 1 Terminals 45 | . . . 1 . . . . . 1 . . . . 1 . 2 . . . . . 1 . 1 . . . . 2 . 7 3 . . 3 4 5 3 6 5 . Track 9 | . . . . . . . . . . . . . . . . . . . . . . . . . . . . . . . . . . . 1 1 3 . 3 1 . Assimilate 5 | . . . 1 . . . . . . . . . . . . . . . . . . . . . . . . . . . 3 . . . . . . . . 1 . Botnet 28 | . . . . . . . . . 1 . . . . 1 . 2 . . . . . 1 . 1 . . . . 2 . 4 3 . . 2 2 2 2 3 2 . Operators 3 | . . . . . . . . . . . . . . . . . . . . . . . . . . . . . . . . . . . . 1 . 1 . 1 . Fabricators 5 | . . . . . . . . . . . . . . . . . . . . . . . . . . . . . . . 1 . . . . . . 2 2 . . Report 2 | . . . . . . . . . . . . . . . . . . . . . . . . . . . . . . . . . . . . . . 1 1 . . Prioritize 1 | . . . . . . . . . . . . . . . . . . . . . . . . . . . . . . . . . . . . . . . 1 . . Haulers 2 | . . . . . . . . . . . . . . . . . . . . . . . . . . . . . . . 1 . . . . . . 1 . . . Repair Stations . | . . . . . . . . . . . . . . . . . . . . . . . . . . . . . . . . . . . . . . . . . . Recycling Units 12 | . . . . . . 7 . . . . . . . . . . . . . . . 2 . . . . . . . . 1 . . . . . . 2 . . . Reject 2 | . . . . . . . . . . . . . . . . . . . . . . 1 . . . . . . . . . . . . . . . 1 . . . Recyclers 3 | . . . . . . . . . . . . . . . . . . . . . . 1 . . . . . . . . 1 . . . . . . 1 . . . Tunnel 7 | . . . . . . 7 . . . . . . . . . . . . . . . . . . . . . . . . . . . . . . . . . . . Scanalyzers . | . . . . . . . . . . . . . . . . . . . . . . . . . . . . . . . . . . . . . . . . . . Garrison Access 6 | . . . . . . . . . . . . . . . . . . . . . . . . . . . . . 2 . 1 . . . . 1 1 . . . 1 Restock 4 | . . . . . . . . . . . . . . . . . . . . . . . . . . . . . 2 . . . . . . . 1 . . . 1 Reprogram 2 | . . . . . . . . . . . . . . . . . . . . . . . . . . . . . . . 1 . . . . 1 . . . . . Data Cores Recovered 6 | . . . . . . . 1 . . . . . . . . . . . . . . . . . . . . . . . 1 1 . . . . 2 . 1 . . Used . | . . . . . . . . . . . . . . . . . . . . . . . . . . . . . . . . . . . . . . . . . . Hacking Detections 131 | . 2 . 7 3 . 7 7 . 6 . . . . 8 . 5 . . . . . 4 . 4 . . . . 13 . 13 7 1 . 7 4 7 6 7 9 4 Full Trace Events 16 | . . . 2 . . 7 . . 1 . . . . 1 . . . . . . . . . . . . . . . . . . . . 1 . . 1 1 . 2 Feedback Events 2 | . . . . . . . . . . . . . . . . . . . . . . . . . . . . . . . . . . . 1 . . . . . 1 Corruption 2 | . . . . . . . . . . . . . . . . . . . . . . . . . . . . . . . . . . . 1 . . . . . 1 Feedback Blocked . | . . . . . . . . . . . . . . . . . . . . . . . . . . . . . . . . . . . . . . . . . . Robot Schematics Acquired 19 | . . . . . . 2 . . . . . 5 . . . . . . 3 . . . . . . . . . . . . . . . . . 1 . 6 2 . Robots Built . | . . . . . . . . . . . . . . . . . . . . . . . . . . . . . . . . . . . . . . . . . . Authchips . | . . . . . . . . . . . . . . . . . . . . . . . . . . . . . . . . . . . . . . . . . . Time . | . . . . . . . . . . . . . . . . . . . . . . . . . . . . . . . . . . . . . . . . . . Total Robot Build Rating . | . . . . . . . . . . . . . . . . . . . . . . . . . . . . . . . . . . . . . . . . . . Part Schematics Acquired 70 | . . . . . . 1 1 . . . . 12 . . . . . . 12 . . . . . . . 4 . . . . . . . . 1 6 3 13 17 . Parts Built 4 | . . . . . . . . . . . . . . 2 . . . . . . . . . . . . . . . . . . . . . . . 1 . . 1 Authchips 1 | . . . . . . . . . . . . . . 1 . . . . . . . . . . . . . . . . . . . . . . . . . . . Time 355 | . . . . . . . . . . . . . . 186 . . . . . . . . . . . . . . . . . . . . . . . 76 . . 93 Total Part Build Rating 26 | . . . . . . . . . . . . . . 14 . . . . . . . . . . . . . . . . . . . . . . . 5 . . 7 Parts Repaired 14 | . . . . 1 . . . . . . . . . 1 . 1 . . . . . . . . . . . . 1 . . . . . . 1 . 4 1 4 . Time 516 | . . . . 26 . . . . . . . . . 54 . 95 . . . . . . . . . . . . 16 . . . . . . 62 . 122 20 121 . Parts Recycled . | . . . . . . . . . . . . . . . . . . . . . . . . . . . . . . . . . . . . . . . . . . Recycled Matter . | . . . . . . . . . . . . . . . . . . . . . . . . . . . . . . . . . . . . . . . . . . Retrieved Matter . | . . . . . . . . . . . . . . . . . . . . . . . . . . . . . . . . . . . . . . . . . . Retrieved Components 47 | . . . . . . . 10 . . . . . . 12 . . . . . . . 1 . 3 . . . . 2 . 3 . . . . 16 . . . . . Parts Scanalyzed 5 | . . . 1 . . . . . . . . . . . . . . . . . . . . . . . . . . . 1 . . . . . . 2 1 . . Part Schematics Acquired 4 | . . . . . . . 1 . . . . . . . . . . . . . . . . . . . . . . . . . . . . . . 2 1 . . Parts Damaged . | . . . . . . . . . . . . . . . . . . . . . . . . . . . . . . . . . . . . . . . . . . Bothacking | -11 -10 -10 -9 -9 -9 -9 -7 -7 -7 -7 -7 -7 -6 -6 -6 -6 -6 -6 -6 -6 -5 -5 -5 -5 -5 -5 -5 -4 -4 -4 -4 -4 -4 -4 -4 -3 -3 -2 -2 -2 -1 ------------ Run | Scr Mat Min Mat Sto Gar Rec Fac Was Fac Low Low Dat Pro Fac Was Fac Low Low Zio Dee Pro Fac Was Fac Upp Upp Zhi Pro Fac Was Fac Ext Cet Arc Hub Res Qua Res Tes Sec Acc Used RIF Installer 1 | . . . . . 1 . . . . . . . . . . . . . . . . . . . . . . . . . . . . . . . . . . . . Robots Hacked 56 | . . . . . . . 3 6 . . . 1 1 1 6 . 2 . 1 . . 1 6 1 . . 4 . 3 6 1 1 1 . 3 . 2 . 1 3 2 Non-combat 13 | . . . . . . . 1 . . . . . 1 1 . . . . . . . 1 . . . . . . 3 . 1 . . . 1 . 1 . . 1 2 Combat 43 | . . . . . . . 2 6 . . . 1 . . 6 . 2 . 1 . . . 6 1 . . 4 . . 6 . 1 1 . 2 . 1 . 1 2 . Robot Hacks Applied 59 | . . . . . . . 3 7 . . . 1 1 1 6 . 2 . 1 . . 1 7 1 . . 4 . 3 6 1 1 1 . 3 . 2 . 1 3 3 parse_system 20 | . . . . . . . . 1 . . . 1 1 . . . 2 . 1 . . . 2 1 . . 4 . 1 . . 1 1 . 2 . . . 1 1 . find_chute 5 | . . . . . . . 1 . . . . . . 1 . . . . . . . 1 . . . . . . 2 . . . . . . . . . . . . find_recycling 1 | . . . . . . . . . . . . . . . . . . . . . . . . . . . . . . . 1 . . . . . . . . . . purge_threat 4 | . . . . . . . . . . . . . . . . . . . . . . . . . . . . . . . . . . . . . 1 . . 1 2 ignore_targets 23 | . . . . . . . . 6 . . . . . . 6 . . . . . . . 5 . . . . . . 6 . . . . . . . . . . . amplify_resonance 1 | . . . . . . . . . . . . . . . . . . . . . . . . . . . . . . . . . . . 1 . . . . . . overwrite_iff 1 | . . . . . . . 1 . . . . . . . . . . . . . . . . . . . . . . . . . . . . . . . . . . formatsys_low 3 | . . . . . . . . . . . . . . . . . . . . . . . . . . . . . . . . . . . . . 1 . . 1 1 formatsys_high 1 | . . . . . . . 1 . . . . . . . . . . . . . . . . . . . . . . . . . . . . . . . . . . Relay Couplers Released 54 | . . . . . 19 . . . 3 . . . . 2 . . . . . . . . . . . . . . 13 . 2 . . . 3 1 4 2 . 2 3 Machine Destruction 37 | . . . . . 19 . . . 3 . . . . 2 . . . . . . . . . . . . . . . . 2 . . . 3 1 . 2 . 2 3 Programmers 17 | . . . . . . . . . . . . . . . . . . . . . . . . . . . . . 13 . . . . . . . 4 . . . . Attached 11 | . . . . . 1 . 4 . . . . . . . 1 . . . . . . . 1 . . . . . 1 . . . . . 1 . . . . 1 1 Fabnet Peak Effective % . | . . . . . . . . . . . . . . . . . . . . . . . . . . . . . . . . . . . . . . . . . . Robots Rewired 23 | . . . . . . . . . . . . . . . . . 1 . . . . . . . . . . . 2 1 . 17 1 . . . . . . 1 . Allies Hacked 4 | . . . . . . . . . . . . . . . . . . . . . . . . . . . . . . . 1 . 1 . . 2 . . . . . Hacks Repelled 1 | . . . . . . . . . . . . . . . . . . . . . . . . . . . . . . . 1 . . . . . . . . . . Allies | -11 -10 -10 -9 -9 -9 -9 -7 -7 -7 -7 -7 -7 -6 -6 -6 -6 -6 -6 -6 -6 -5 -5 -5 -5 -5 -5 -5 -4 -4 -4 -4 -4 -4 -4 -4 -3 -3 -2 -2 -2 -1 -------- Run | Scr Mat Min Mat Sto Gar Rec Fac Was Fac Low Low Dat Pro Fac Was Fac Low Low Zio Dee Pro Fac Was Fac Upp Upp Zhi Pro Fac Was Fac Ext Cet Arc Hub Res Qua Res Tes Sec Acc Total Allies 109 | . . . 1 10 . . 2 18 . . . . . . 19 . 1 . . . . . 1 . . . . . 2 20 4 24 1 . . 2 1 . . 2 1 Largest Group 20 | . . . 1 10 . . 2 18 14 . . . . . 19 15 14 12 6 . . . 1 . . . . . 2 19 20 10 5 1 1 2 1 . . 1 1 Highest-Rated Group 822 | . . . 10 88 . . 48 434 336 . . . . . 702 552 527 439 221 . . . 31 . . . . . 86 779 822 535 199 82 82 112 49 . . 178 35 Highest-Rated Ally 178 | . . . 10 16 . . 32 35 31 . . . . . 50 46 46 46 46 . . . 31 . . . . . 56 141 141 159 82 82 82 56 49 . . 178 35 Total Orders 37 | . . . . . . . . . . . . . . . . . . . . . . . . . . . . . 2 11 . 1 . 4 2 . . . . 6 11 STAY 15 | . . . . . . . . . . . . . . . . . . . . . . . . . . . . . 1 7 . 1 . 2 1 . . . . 3 . ROAM 2 | . . . . . . . . . . . . . . . . . . . . . . . . . . . . . . 2 . . . . . . . . . . . FOLLOW 9 | . . . . . . . . . . . . . . . . . . . . . . . . . . . . . 1 2 . . . 2 1 . . . . 3 . EXPLORE 1 | . . . . . . . . . . . . . . . . . . . . . . . . . . . . . . . . . . . . . . . . . 1 RETURN 10 | . . . . . . . . . . . . . . . . . . . . . . . . . . . . . . . . . . . . . . . . . 10 Ally Attacks 922 | . . . . 29 . . 7 157 65 . . . . . 9 39 82 62 26 . . . 28 . . . . . 5 33 113 157 25 . 3 2 2 . . 19 59 Total Damage 21420 | . . . . 266 . . 233 3357 802 . . . . . 248 721 1652 1357 380 . . . 498 . . . . . 451 1262 2904 4838 473 . 87 204 . . . 589 1098 Kills 106 | . . . . 2 . . 2 5 6 . . . . . 2 5 13 12 5 . . . . . . . . . 4 2 18 21 3 . . . . . . 1 5 Allies Corrupted 14 | . . . . . . . 1 2 1 . . . . . . . . . . . . . 1 . . . . . . . 3 2 2 . . 2 . . . . . Allies Melted 1 | . . . . . . . . . . . . . . . . . . . . . . . . . . . . . . . 1 . . . . . . . . . . Intel | -11 -10 -10 -9 -9 -9 -9 -7 -7 -7 -7 -7 -7 -6 -6 -6 -6 -6 -6 -6 -6 -5 -5 -5 -5 -5 -5 -5 -4 -4 -4 -4 -4 -4 -4 -4 -3 -3 -2 -2 -2 -1 ------- Run | Scr Mat Min Mat Sto Gar Rec Fac Was Fac Low Low Dat Pro Fac Was Fac Low Low Zio Dee Pro Fac Was Fac Upp Upp Zhi Pro Fac Was Fac Ext Cet Arc Hub Res Qua Res Tes Sec Acc Robot Analysis Total 10 | . . . 1 . . 1 . . . . . . . . . . . . . . . . . . . . 4 . . . . . . . 2 . 2 . . . . Derelict Logs Recovered 19 | . . 1 . . . . . . . 2 3 . 2 . . . 2 2 1 . 3 . . . 1 . . 2 . . . . . . . . . . . . . Drone Launches 18 | . . . . . . . . . . . . . . . . . . . . . . . . . . . . . . . . . . . . . . . . . 18 Drone Recoveries 16 | . . . . . . . . . . . . . . . . . . . . . . . . . . . . . . . . . . . . . . . . . 16 Exploration | -11 -10 -10 -9 -9 -9 -9 -7 -7 -7 -7 -7 -7 -6 -6 -6 -6 -6 -6 -6 -6 -5 -5 -5 -5 -5 -5 -5 -4 -4 -4 -4 -4 -4 -4 -4 -3 -3 -2 -2 -2 -1 ------------- Run | Scr Mat Min Mat Sto Gar Rec Fac Was Fac Low Low Dat Pro Fac Was Fac Low Low Zio Dee Pro Fac Was Fac Upp Upp Zhi Pro Fac Was Fac Ext Cet Arc Hub Res Qua Res Tes Sec Acc Turns Passed 79968 | 74 323 922 2351 571 2685 2248 1445 995 1577 1925 2407 238 2161 2521 1115 771 2074 2184 4794 5034 2075 1196 727 1932 2397 2686 1367 2476 2854 840 4056 1687 436 883 2183 1006 2450 1836 3727 3491 1248 Spaces Moved 32954 | 42 185 518 978 148 743 451 519 385 580 776 976 93 850 882 347 307 795 889 1481 1410 880 614 306 733 1004 1027 530 1193 1466 397 1926 926 193 299 895 450 1328 803 1775 1731 1123 Core 13 | 7 . . . . . 6 . . . . . . . . . . . . . . . . . . . . . . . . . . . . . . . . . . . Treads 15621 | 35 185 518 978 148 743 445 519 385 580 776 976 93 850 882 347 307 795 889 1481 1186 . . . 22 843 1027 330 281 . . . . . . . . . . . . . Legs 1103 | . . . . . . . . . . . . . . . . . . . . 224 879 . . . . . . . . . . . . . . . . . . . . Wheels 15491 | . . . . . . . . . . . . . . . . . . . . . 1 614 306 711 161 . 200 912 1466 397 1926 926 193 299 895 450 1328 803 1775 1595 533 Hover . | . . . . . . . . . . . . . . . . . . . . . . . . . . . . . . . . . . . . . . . . . . Flight . | . . . . . . . . . . . . . . . . . . . . . . . . . . . . . . . . . . . . . . . . . . Fastest Speed 50 | 50 160 160 160 232 232 305 225 225 232 232 232 245 245 240 240 240 240 240 240 150 180 165 150 131 131 250 165 165 135 141 141 130 150 130 150 150 130 150 150 130 115 Average Speed 202 | 141 160 160 191 237 302 454 225 230 232 232 241 245 245 240 240 240 240 240 265 246 209 168 164 166 230 250 219 190 151 145 156 148 150 143 154 151 150 170 169 156 143 Slowest Speed 4950 | 160 160 160 320 312 312 4950 225 232 232 232 245 245 245 323 240 240 240 320 320 320 210 180 165 330 250 250 330 250 195 156 157 157 170 150 170 170 170 210 170 190 170 Overloaded Moves . | . . . . . . . . . . . . . . . . . . . . . . . . . . . . . . . . . . . . . . . . . . Propulsion Burnouts . | . . . . . . . . . . . . . . . . . . . . . . . . . . . . . . . . . . . . . . . . . . Robots Hopped . | . . . . . . . . . . . . . . . . . . . . . . . . . . . . . . . . . . . . . . . . . . Cave-ins Triggered . | . . . . . . . . . . . . . . . . . . . . . . . . . . . . . . . . . . . . . . . . . . Teleports 6 | . . . . . . . . . . . . . . . . . . . . . . . . . . . 1 . . . . . . . . . 1 . . 1 3 Microwarps 90 | . . . . . . . . . . . . . . . . . . . . . . . . . . . . . . . . . . . . . . . . 15 75 Exploration Rate (%) 65 | 3 30 100 81 29 86 99 16 97 16 86 97 70 94 21 96 8 93 85 82 92 85 14 88 19 95 93 70 95 31 97 41 94 78 96 73 8 90 19 94 77 28 Regions Visited 41 Branch Regions 23 Pre-discovered Areas 16 | . . . . . . 7 . . . . 1 1 1 . . . . 2 . . 1 . . . . . 3 . . . . . . . . . . . . . . Known Exits Taken 21 | . . . . 1 . . . . 1 . . . . . . 1 1 1 . . 1 . . 1 1 1 1 1 . . 1 1 1 1 1 1 1 1 1 1 . Unknown Exits Taken 11 | 1 1 1 1 . . 1 . . . 1 1 1 1 . . . . . 1 1 . . . . . . . . . . . . . . . . . . . . . Scrap Searched 31 | . . 2 . . . . . . . 1 3 . 4 . . . 7 5 2 . 1 . . . 2 3 . 1 . . . . . . . . . . . . . Spaces Dug 456 | . . 13 22 3 12 . 1 . 6 . 1 . . 11 . 3 3 . . 5 7 23 7 49 1 3 . 12 16 . 82 3 1 . 15 4 18 15 41 22 57 Terrain Destroyed 2062 | . . 46 206 38 58 . 40 . 59 . 1 . 45 17 17 3 4 1 55 14 11 31 12 107 4 73 21 35 63 6 360 81 36 15 169 32 82 33 74 36 177 Melee 16 | . . . 4 3 . . 1 . 1 . . . . 7 . . . . . . . . . . . . . . . . . . . . . . . . . . . Projectile 806 | . . . 2 5 3 . . . . . 1 . . 10 17 3 4 1 21 14 11 31 12 96 2 4 . 35 29 . 172 4 1 15 102 10 22 31 71 36 41 AOE 1200 | . . 46 200 30 55 . 39 . 58 . . . 45 . . . . . 34 . . . . 11 2 69 21 . 34 6 188 77 35 . 67 20 59 . . . 104 Terrain Rammed . | . . . . . . . . . . . . . . . . . . . . . . . . . . . . . . . . . . . . . . . . . . Walls Destroyed . | . . . . . . . . . . . . . . . . . . . . . . . . . . . . . . . . . . . . . . . . . . Machines Disabled . | . . . . . . . . . . . . . . . . . . . . . . . . . . . . . . . . . . . . . . . . . . Actions | -11 -10 -10 -9 -9 -9 -9 -7 -7 -7 -7 -7 -7 -6 -6 -6 -6 -6 -6 -6 -6 -5 -5 -5 -5 -5 -5 -5 -4 -4 -4 -4 -4 -4 -4 -4 -3 -3 -2 -2 -2 -1 --------- Run | Scr Mat Min Mat Sto Gar Rec Fac Was Fac Low Low Dat Pro Fac Was Fac Low Low Zio Dee Pro Fac Was Fac Upp Upp Zhi Pro Fac Was Fac Ext Cet Arc Hub Res Qua Res Tes Sec Acc Total 43605 | 54 212 565 1262 289 1032 531 721 458 693 871 1009 103 913 1159 517 334 957 930 1936 2694 1078 720 433 1167 1059 1124 661 1345 2058 542 2648 1161 310 681 1502 751 1769 1245 2520 2594 997 Wait 4660 | 1 4 6 64 60 119 . 55 14 11 47 9 . 42 100 19 13 129 19 157 1030 178 30 . 190 26 68 10 100 222 28 310 42 5 270 184 46 117 212 334 267 122 Move 32281 | 41 184 517 977 148 741 450 519 384 579 775 975 92 849 882 346 306 794 888 1480 1409 879 614 305 732 1003 1026 529 1192 1466 396 1925 925 192 298 894 449 1327 802 1774 1609 608 Hop . | . . . . . . . . . . . . . . . . . . . . . . . . . . . . . . . . . . . . . . . . . . Pick Up 554 | 6 14 5 37 8 20 8 17 6 8 5 2 2 3 19 2 2 . 2 11 24 . 8 4 9 4 3 21 2 39 2 18 11 8 2 33 24 34 27 36 56 12 Fast Attach 355 | 6 1 . 6 . . 1 8 7 2 1 1 . . 7 5 . 4 6 17 19 . 8 5 11 . 2 3 . 35 4 12 10 7 9 19 3 25 20 31 35 25 Attach 443 | . 1 . 9 2 5 3 5 1 1 7 . 2 . 15 2 1 . . 5 8 . 3 1 8 3 . 8 1 30 2 18 9 10 2 31 36 33 27 39 74 41 Detach 198 | . . . . . 1 1 1 2 . 2 . . . 6 2 1 . . 7 12 . 4 . 3 1 . 2 . 9 1 2 5 7 . 10 17 18 9 14 31 30 Swap 662 | . 2 5 34 13 23 1 38 6 28 19 11 2 7 54 8 7 2 2 38 21 5 6 2 63 8 7 14 8 37 6 29 31 11 6 46 10 14 9 2 17 10 Drop 708 | . 5 5 30 12 13 5 21 14 8 3 3 2 3 17 14 . 4 8 16 25 . 9 12 10 2 3 22 1 70 7 28 14 10 6 39 21 57 40 67 72 10 Fire 3500 | . 1 26 99 42 98 . 32 7 51 12 8 3 5 44 119 4 5 5 205 145 16 38 104 134 12 15 45 41 150 61 306 106 60 88 245 145 144 99 222 427 131 Melee 161 | . . . 4 4 . 61 11 17 5 . . . 4 14 . . . . . . . . . . . . . . . 35 . . . . . . . . 1 5 . Ram 5 | . . . . . . . . . . . . . . . . . . . . . . . . 3 . . . . . . . . . . 1 . . . . 1 . Kick . | . . . . . . . . . . . . . . . . . . . . . . . . . . . . . . . . . . . . . . . . . . Crush 14 | . . 1 2 . . 1 4 . . . . . . 1 . . . . . 1 . . . 4 . . . . . . . . . . . . . . . . . Escape Stasis 31 | . . . . . 12 . . . . . . . . . . . . . . . . . . . . . 3 . . . . 8 . . . . . . . . 8 Rewire 19 | . . . . . . . . . . . . . . . . . 19 . . . . . . . . . . . . . . . . . . . . . . . . Trap 14 | . . . . . . . 10 . . . . . . . . . . . . . . . . . . . 4 . . . . . . . . . . . . . . Miscellaneous . | . . . . . . . . . . . . . . . . . . . . . . . . . . . . . . . . . . . . . . . . . . Route ------- -11/Scrapyard -10/Materials -10/Mines (discovered 2 exits: *Mat x2) -9/Materials (discovered 4 exits: [*Mat x2] / *Sto x2) -9/Storage -9/Garrison (discovered 3 exits: *Rec x3) -9/Recycling -7/Factory (discovered 2 exits: *Fac x2) -7/Waste -7/Factory -7/Lower Caves -7/Lower Caves (discovered 2 exits: *Fac / *Dat) -7/Data Miner -6/Proximity Caves -6/Factory -6/Waste -6/Factory (discovered 2 exits: *Low x2) -6/Lower Caves -6/Lower Caves -6/Zion (discovered 2 exits: [*Dee] / *Pro) -6/Deep Caves -5/Proximity Caves -5/Factory (discovered 4 exits: Fac x2 / *Upp x2) -5/Waste -5/Factory (discovered 4 exits: *Fac x2 / *Upp x2) -5/Upper Caves -5/Upper Caves (discovered 2 exits: *Fac / *Zhi) -5/Zhirov -4/Proximity Caves -4/Factory -4/Waste -4/Factory (discovered 7 exits: *Res x3 / Upp x2 / *Ext x2) -4/Extension (discovered 2 exits: *Res / *Cet) -4/Cetus (discovered 2 exits: *Res / *Arc) -4/Archives (discovered 3 exits: *Res / *Hub x2) -4/Hub_04(d) (discovered 3 exits: *Res x3) -3/Research (discovered 3 exits: Arm / *Qua x2) -3/Quarantine -2/Research (discovered 2 exits: *Tes x2) -2/Testing (discovered 2 exits: *Acc / *Sec) -2/Section 7 -1/Access History --------- Turn | Location | Event 44 | -11/Scrapyard | Discovered new exit (range 16) 75 | -11/Scrapyard | Entered Materials 114 | -10/Materials | Discovered new exit (range 9) 306 | -10/Materials | Build established: Mutant 398 | -10/Materials | Entered Mines 443 | -10/Mines | Learned Materials stockpile data 477 | -10/Mines | Received a Rocket Launcher from a helpful Derelict 718 | -10/Mines | Discovered new exit (range 5) 738 | -10/Mines | Discovered new exit (range 9) 919 | -10/Mines | Found a damaged Exp. Sensor Array with a note attached 922 | -10/Mines | Found Prototype Device 1320 | -10/Mines | Entered Materials 1320 | -9/Materials | Evolved 2 slots: Utility x2 1675 | -9/Materials | Discovered new exit (range 8) 1683 | -9/Materials | Discovered new exit (range 15) 1963 | -9/Materials | Identified Exp. Sensor Array 2883 | -9/Materials | Discovered new exit (range 3) 2920 | -9/Materials | First assault squad dispatched 3328 | -9/Materials | Discovered new exit (range 12) 3388 | -9/Materials | Destroyed 12 combat bots 3671 | -9/Materials | Entered Storage 4071 | -9/Storage | First assault squad dispatched 4084 | -9/Storage | Repaired Grenade Launcher 4096 | -9/Storage | Garrison activated, responded to threat 4119 | -9/Storage | Destroyed 7 combat bots 4162 | -9/Storage | Assisted by bots powering up and referring to "LRC-V3" 4225 | -9/Storage | Core integrity fell below 50% 4242 | -9/Storage | Identified exit to Garrison 4242 | -9/Storage | Entered Garrison 4254 | -9/Garrison | Installed Relay Interface Framework 4358 | -9/Garrison | Triggered checkpoint 4413 | -9/Garrison | Garrison Relay disabled 4628 | -9/Garrison | Triggered checkpoint 5074 | -9/Garrison | Triggered checkpoint 5295 | -9/Garrison | Garrison Relay disabled 5483 | -9/Garrison | Discovered new exit (range 15) 5520 | -9/Garrison | Build established: Bothacker-Mutant 5838 | -9/Garrison | Triggered checkpoint 6024 | -9/Garrison | Spotted B-75 Beast 6024 | -9/Garrison | Spotted B-75 Beast 6148 | -9/Garrison | Discovered new exit (range 15) 6362 | -9/Garrison | Garrison Relay disabled 6606 | -9/Garrison | Discovered new exit (range 8) 6702 | -9/Garrison | Triggered checkpoint 6790 | -9/Garrison | Garrison Relay disabled 6927 | -9/Garrison | Entered Recycling 6933 | -9/Recycling | Spotter reported a threat 6973 | -9/Recycling | Spotter reported a threat 6973 | -9/Recycling | Spotter reported a threat 6977 | -9/Recycling | Spotter reported a threat 6986 | -9/Recycling | Spotter reported a threat 6991 | -9/Recycling | Spotter reported a threat 7019 | -9/Recycling | Spotter reported a threat 7022 | -9/Recycling | Spotter reported a threat 7026 | -9/Recycling | Spotter reported a threat 7029 | -9/Recycling | Spotter reported a threat 7044 | -9/Recycling | Spotter reported a threat 7044 | -9/Recycling | Spotter reported a threat 7072 | -9/Recycling | Spotter reported a threat 7091 | -9/Recycling | Spotter reported a threat 7115 | -9/Recycling | Spotter reported a threat 7229 | -9/Recycling | Spotter reported a threat 7266 | -9/Recycling | Spotter reported a threat 7266 | -9/Recycling | Spotter reported a threat 7267 | -9/Recycling | Spotter reported a threat 7268 | -9/Recycling | Spotter reported a threat 7277 | -9/Recycling | Spotter reported a threat 7308 | -9/Recycling | Spotter reported a threat 7319 | -9/Recycling | Spotter reported a threat 7327 | -9/Recycling | Spotter reported a threat 7335 | -9/Recycling | Spotter reported a threat 7342 | -9/Recycling | Spotter reported a threat 7370 | -9/Recycling | Spotter reported a threat 7375 | -9/Recycling | Spotter reported a threat 7380 | -9/Recycling | Spotter reported a threat 7395 | -9/Recycling | Spotter reported a threat 7400 | -9/Recycling | Spotter reported a threat 7418 | -9/Recycling | Spotter reported a threat 7428 | -9/Recycling | Spotter reported a threat 7433 | -9/Recycling | Spotter reported a threat 7448 | -9/Recycling | Spotter reported a threat 7465 | -9/Recycling | Spotter reported a threat 7475 | -9/Recycling | Spotter reported a threat 7483 | -9/Recycling | Spotter reported a threat 7483 | -9/Recycling | Spotter reported a threat 7486 | -9/Recycling | Spotter reported a threat 7518 | -9/Recycling | Spotter reported a threat 7523 | -9/Recycling | Discovered new exit (range 7) 7529 | -9/Recycling | Spotter reported a threat 7539 | -9/Recycling | Spotter reported a threat 7540 | -9/Recycling | Spotter reported a threat 7571 | -9/Recycling | Spotter reported a threat 7582 | -9/Recycling | Spotter reported a threat 7585 | -9/Recycling | Spotter reported a threat 7593 | -9/Recycling | Spotter reported a threat 7598 | -9/Recycling | Spotter reported a threat 7606 | -9/Recycling | Spotter reported a threat 7624 | -9/Recycling | Spotter reported a threat 7638 | -9/Recycling | Spotter reported a threat 7640 | -9/Recycling | Spotter reported a threat 7651 | -9/Recycling | Spotter reported a threat 7659 | -9/Recycling | Spotter reported a threat 7677 | -9/Recycling | Spotter reported a threat 7721 | -9/Recycling | Spotter reported a threat 7722 | -9/Recycling | Spotter reported a threat 7741 | -9/Recycling | Spotter reported a threat 7749 | -9/Recycling | Spotter reported a threat 7826 | -9/Recycling | Spotter reported a threat 7826 | -9/Recycling | Spotter reported a threat 7835 | -9/Recycling | Spotter reported a threat 7879 | -9/Recycling | Spotter reported a threat 7888 | -9/Recycling | Spotter reported a threat 7892 | -9/Recycling | Spotter reported a threat 7910 | -9/Recycling | Spotter reported a threat 7941 | -9/Recycling | Spotter reported a threat 7945 | -9/Recycling | Spotter reported a threat 7963 | -9/Recycling | Spotter reported a threat 8018 | -9/Recycling | Spotter reported a threat 8019 | -9/Recycling | Spotter reported a threat 8047 | -9/Recycling | Spotter reported a threat 8087 | -9/Recycling | Spotter reported a threat 8089 | -9/Recycling | Spotter reported a threat 8109 | -9/Recycling | Spotter reported a threat 8132 | -9/Recycling | Spotter reported a threat 8181 | -9/Recycling | Spotter reported a threat 8185 | -9/Recycling | Spotter reported a threat 8215 | -9/Recycling | Spotter reported a threat 8233 | -9/Recycling | Spotter reported a threat 8234 | -9/Recycling | Spotter reported a threat 8234 | -9/Recycling | Spotter reported a threat 8234 | -9/Recycling | Spotter reported a threat 8237 | -9/Recycling | Spotter reported a threat 8249 | -9/Recycling | Spotter reported a threat 8289 | -9/Recycling | Spotter reported a threat 8357 | -9/Recycling | Spotter reported a threat 8382 | -9/Recycling | Spotter reported a threat 8406 | -9/Recycling | Spotter reported a threat 8408 | -9/Recycling | Spotter reported a threat 8410 | -9/Recycling | Spotter reported a threat 8441 | -9/Recycling | Spotter reported a threat 8461 | -9/Recycling | Spotter reported a threat 8515 | -9/Recycling | Spotter reported a threat 8526 | -9/Recycling | Spotter reported a threat 8526 | -9/Recycling | Spotter reported a threat 8593 | -9/Recycling | Spotter reported a threat 8593 | -9/Recycling | Spotter reported a threat 8607 | -9/Recycling | Spotter reported a threat 8619 | -9/Recycling | Spotter reported a threat 8646 | -9/Recycling | Spotter reported a threat 8646 | -9/Recycling | Spotter reported a threat 8657 | -9/Recycling | Spotter reported a threat 8672 | -9/Recycling | Spotter reported a threat 8673 | -9/Recycling | Spotter reported a threat 8699 | -9/Recycling | Spotter reported a threat 8720 | -9/Recycling | Spotter reported a threat 8720 | -9/Recycling | Spotter reported a threat 8772 | -9/Recycling | Spotter reported a threat 8788 | -9/Recycling | Spotter reported a threat 8794 | -9/Recycling | Spotter reported a threat 8803 | -9/Recycling | Spotter reported a threat 8813 | -9/Recycling | Spotter reported a threat 8830 | -9/Recycling | Spotter reported a threat 8861 | -9/Recycling | Spotter reported a threat 8861 | -9/Recycling | Spotter reported a threat 8880 | -9/Recycling | Spotter reported a threat 8892 | -9/Recycling | Spotter reported a threat 8899 | -9/Recycling | Spotter reported a threat 8899 | -9/Recycling | Spotter reported a threat 8945 | -9/Recycling | Spotter reported a threat 8949 | -9/Recycling | Spotter reported a threat 8975 | -9/Recycling | Spotter reported a threat 8986 | -9/Recycling | Spotter reported a threat 8993 | -9/Recycling | Spotter reported a threat 8998 | -9/Recycling | Spotter reported a threat 9005 | -9/Recycling | Spotter reported a threat 9017 | -9/Recycling | Spotter reported a threat 9017 | -9/Recycling | Spotter reported a threat 9039 | -9/Recycling | Spotter reported a threat 9069 | -9/Recycling | Spotter reported a threat 9091 | -9/Recycling | Spotter reported a threat 9127 | -9/Recycling | Spotter reported a threat 9144 | -9/Recycling | Spotter reported a threat 9175 | -9/Recycling | Entered Factory 9175 | -7/Factory | Evolved 4 slots: Power x1, Propulsion x1, Utility x2 9575 | -7/Factory | Search patrols dispatched 9745 | -7/Factory | Discovered new exit (range 16) 9975 | -7/Factory | Search patrols dispatched 10152 | -7/Factory | Discovered new exit (range 15) 10375 | -7/Factory | Search patrols dispatched 10620 | -7/Factory | Sucked down chute 10620 | -7/Factory | Entered Waste 10636 | -7/Waste | Spotted C-40 Crusher 10638 | -7/Waste | Spotted C-40 Crusher 10652 | -7/Waste | Spotted C-40 Crusher 10657 | -7/Waste | Spotted C-40 Crusher 10661 | -7/Waste | Spotted C-40 Crusher 10665 | -7/Waste | Crushed by Compactor (1 part destroyed, 2 dropped) 10674 | -7/Waste | Spotted C-40 Crusher 10847 | -7/Waste | Destroyed C-40 Crusher 10884 | -7/Waste | Destroyed C-40 Crusher 10898 | -7/Waste | Found Damper Plating 11095 | -7/Waste | Destroyed C-40 Crusher 11109 | -7/Waste | Found Damper Plating 11188 | -7/Waste | Build established: Scavenger-Mutant 11210 | -7/Waste | Warlord forces began an assault 11216 | -7/Waste | Allies destroyed C-40 Crusher 11229 | -7/Waste | Allies destroyed C-40 Crusher 11389 | -7/Waste | Allies destroyed C-40 Crusher 11411 | -7/Waste | Discovered new exit (range 15) 11615 | -7/Waste | Entered Factory 11615 | -7/Factory | Accompanied by 14 allies 11820 | -7/Factory | Discovered new exit (range 7) 12009 | -7/Factory | Identified exit to Lower Caves 12898 | -7/Factory | Garrison activated, responded to threat 13192 | -7/Factory | Entered Lower Caves 13624 | -7/Lower Caves | Learned Factory terminal intel 13653 | -7/Lower Caves | Build established: Mutant 13971 | -7/Lower Caves | Attracted the attention of an 0b10 checkpoint 14296 | -7/Lower Caves | Learned Factory security intel 14852 | -7/Lower Caves | Acquired the password to a Derelict Tinkerer's latest research 14876 | -7/Lower Caves | Found Prototype Special Weapon 14876 | -7/Lower Caves | Identified Molecular Deconstructor 14982 | -7/Lower Caves | Discovered new exit (range 14) 15117 | -7/Lower Caves | Entered another Lower Caves area 15155 | -7/Lower Caves | Discovered new exit (range 10) 15188 | -7/Lower Caves | Learned Factory interactive machine intel 15517 | -7/Lower Caves | Attracted the attention of an 0b10 checkpoint 16304 | -7/Lower Caves | Learned 4 Factory zone layouts 17022 | -7/Lower Caves | Discovered new exit (range 12) 17524 | -7/Lower Caves | Entered Data Miner 17526 | -7/Data Miner | Discovered new exit (range 6) 17573 | -7/Data Miner | Met Data Miner 17629 | -7/Data Miner | Learned location of Section 7 (-2) 17629 | -7/Data Miner | Acquired the access code to Warlord's prototype stash 17668 | -7/Data Miner | Received God Mode back door access code from Data Miner 17762 | -7/Data Miner | Entered Proximity Caves 19378 | -6/Proximity Caves | Learned Factory emergency access door positions 19466 | -6/Proximity Caves | Discovered new exit (range 9) 19923 | -6/Proximity Caves | Entered Factory 19923 | -6/Factory | Evolved 2 slots: Utility x2 19927 | -6/Factory | Loaded intel: 50 interactive machine locations 19928 | -6/Factory | Loaded intel: 26 terminal locations 20880 | -6/Factory | Cargo convoy interrupted 20934 | -6/Factory | Fabricated Exp. Sensor Array? 21016 | -6/Factory | Fabricated Combat Drone Bay (x1) 21026 | -6/Factory | Build established: Scavenger-Mutant 21304 | -6/Factory | Repaired Exp. Sensor Array? 22444 | -6/Factory | Sucked down chute 22444 | -6/Factory | Entered Waste 22496 | -6/Waste | Spotted C-40 Crusher 22524 | -6/Waste | Destroyed C-40 Crusher 22550 | -6/Waste | Found Damper Plating 22554 | -6/Waste | Spotted C-40 Crusher 22584 | -6/Waste | Spotted C-40 Crusher 22623 | -6/Waste | Destroyed C-40 Crusher 22644 | -6/Waste | Found Damper Plating 22719 | -6/Waste | Spotted C-40 Crusher 22733 | -6/Waste | Destroyed C-40 Crusher 22741 | -6/Waste | Destroyed C-40 Crusher 22745 | -6/Waste | Spotted C-40 Crusher 22787 | -6/Waste | Destroyed C-40 Crusher 22900 | -6/Waste | Spotted C-40 Crusher 22986 | -6/Waste | Warlord forces began an assault 22995 | -6/Waste | Allies destroyed C-40 Crusher 23199 | -6/Waste | Discovered new exit (range 10) 23552 | -6/Waste | Identified exit to Factory 23559 | -6/Waste | Entered Factory 23559 | -6/Factory | Accompanied by 15 allies 23906 | -6/Factory | Identified exit to Lower Caves 24104 | -6/Factory | Repaired Broken Hvy. Linear Accelerator? 24330 | -6/Factory | Entered Lower Caves 24330 | -6/Lower Caves | Accompanied by 14 allies 24331 | -6/Lower Caves | Encountered a Warlord checkpoint 24342 | -6/Lower Caves | Learned Factory security intel 24782 | -6/Lower Caves | Learned location of 1 exit from Proximity Caves 25367 | -6/Lower Caves | Learned Factory stockpile data 25367 | -6/Lower Caves | Learned Armory security intel 25552 | -6/Lower Caves | Discovered new exit (range 10) 25571 | -6/Lower Caves | Identified exit to Lower Caves 26404 | -6/Lower Caves | Entered another Lower Caves area 26404 | -6/Lower Caves | Accompanied by 12 allies 26545 | -6/Lower Caves | Learned location of Extension (-4) 26545 | -6/Lower Caves | Learned 8 Research zone layouts 26545 | -6/Lower Caves | Learned Research emergency access door positions 26545 | -6/Lower Caves | Learned Extension emergency access door positions 26545 | -6/Lower Caves | Learned Extension stockpile data 26545 | -6/Lower Caves | Learned Research terminal intel 26545 | -6/Lower Caves | Learned Armory terminal intel 26545 | -6/Lower Caves | Learned Research garrison access intel 27858 | -6/Lower Caves | Discovered new exit (range 14) 28103 | -6/Lower Caves | Identified exit to Zion 28141 | -6/Lower Caves | Attracted the attention of an 0b10 checkpoint 28343 | -6/Lower Caves | Learned 8 Factory zone layouts 28588 | -6/Lower Caves | Entered Zion 28588 | -6/Zion | Accompanied by 6 allies 28620 | -6/Zion | Given the Hacking Drone Bay 28625 | -6/Zion | Found Prototype Device 28625 | -6/Zion | Identified Hacking Drone Bay 28770 | -6/Zion | Discovered new exit (range 13) 28799 | -6/Zion | Identified exit to Proximity Caves 29046 | -6/Zion | RIF detected upon attempting to enter Zion 29046 | -6/Zion | Attacked by Zionites 29134 | -6/Zion | Spotted 5P-4NR(B) 29148 | -6/Zion | Spotted SW-6X1(B) 29157 | -6/Zion | Allies destroyed 5P-4NR(B) 29168 | -6/Zion | Allies destroyed SW-6X1(B) 29301 | -6/Zion | Learned 4 Factory zone layouts 29946 | -6/Zion | Destroyed Imprinter 29954 | -6/Zion | Extracted access codes from Imprinter's data core 31768 | -6/Zion | Opened final containment barrier to the Deep Caves 32565 | -6/Zion | Discovered new exit (range 5) 32571 | -6/Zion | Saw the warning signs outside the Deep Caves entrance 33382 | -6/Zion | Entered Deep Caves 34092 | -6/Deep Caves | Found Prototype Protection 34092 | -6/Deep Caves | Identified Zio. Weapon Casing 34602 | -6/Deep Caves | Z-Facility disabled 35000 | -6/Deep Caves | Discovered new exit (range 7) 35709 | -6/Deep Caves | Destroyed as-58362 35742 | -6/Deep Caves | Triggered Deep Caves wall 35746 | -6/Deep Caves | Exposed GOLEM chamber 35781 | -6/Deep Caves | Spotted AS-66856 35787 | -6/Deep Caves | Lost 3 parts (1p2u) 35790 | -6/Deep Caves | Spotted AS-50528 35809 | -6/Deep Caves | Destroyed AS-66856 35818 | -6/Deep Caves | Destroyed AS-50528 35851 | -6/Deep Caves | Destroyed 41 combat bots 35889 | -6/Deep Caves | Found GOLEM Unit 36018 | -6/Deep Caves | Destroyed 15 combat bots 36674 | -6/Deep Caves | Found GOLEM Unit 37548 | -6/Deep Caves | Build established: Golem 38308 | -6/Deep Caves | Build established: Mutant 38416 | -6/Deep Caves | Entered Proximity Caves 38417 | -5/Proximity Caves | Identified exit to Factory 38854 | -5/Proximity Caves | Received a Behemoth hack from an annoying Tinkerer 39419 | -5/Proximity Caves | Learned Factory security intel 39448 | -5/Proximity Caves | Learned 8 Factory zone layouts 40491 | -5/Proximity Caves | Entered Factory 40491 | -5/Factory | Evolved 2 slots: Utility x2 40492 | -5/Factory | Identified exit to Factory 40492 | -5/Factory | Identified exit to Upper Caves 40564 | -5/Factory | Identified exit to DSF 40809 | -5/Factory | Discovered exit to Upper Caves (range 6) 41555 | -5/Factory | Build established: Scavenger-Mutant 41687 | -5/Factory | Sucked down chute 41687 | -5/Factory | Entered Waste 41688 | -5/Waste | Met a frightened Derelict 41701 | -5/Waste | Spotted C-40 Crusher 41702 | -5/Waste | EMP discharged 41733 | -5/Waste | Destroyed C-40 Crusher 41758 | -5/Waste | Spotted C-40 Crusher 41784 | -5/Waste | Spotted C-40 Crusher 41802 | -5/Waste | EMP discharged 41810 | -5/Waste | Destroyed C-40 Crusher 41817 | -5/Waste | Spotted C-40 Crusher 41831 | -5/Waste | Found Damper Plating 41834 | -5/Waste | Found Damper Plating 41852 | -5/Waste | Spotted C-40 Crusher 41886 | -5/Waste | Destroyed C-40 Crusher 41902 | -5/Waste | EMP discharged 41909 | -5/Waste | Destroyed C-40 Crusher 41927 | -5/Waste | Found Damper Plating 41942 | -5/Waste | Destroyed C-40 Crusher 42002 | -5/Waste | EMP discharged 42019 | -5/Waste | Discovered new exit (range 16) 42102 | -5/Waste | EMP discharged 42176 | -5/Waste | Destroyed C-40 Crusher 42202 | -5/Waste | EMP discharged 42302 | -5/Waste | EMP discharged 42402 | -5/Waste | EMP discharged 42414 | -5/Waste | Entered Factory 42509 | -5/Factory | Found Prototype Launcher 42509 | -5/Factory | Identified Mni. Smartbomb Launcher 42824 | -5/Factory | Discovered exit to Factory (range 13) 43533 | -5/Factory | Cargo convoy interrupted 44322 | -5/Factory | Discovered exit to Factory (range 8) 44346 | -5/Factory | Entered Upper Caves 44864 | -5/Upper Caves | Build established: Mutant 45476 | -5/Upper Caves | Attracted the attention of an 0b10 checkpoint 45860 | -5/Upper Caves | Discovered new exit (range 13) 45888 | -5/Upper Caves | Identified exit to Upper Caves 46210 | -5/Upper Caves | Learned Factory stockpile data 46743 | -5/Upper Caves | Entered another Upper Caves area 46831 | -5/Upper Caves | Encountered a Warlord checkpoint 46882 | -5/Upper Caves | Discovered exit to Factory (range 15) 48336 | -5/Upper Caves | Discovered new exit (range 7) 48349 | -5/Upper Caves | Identified exit to Zhirov 49429 | -5/Upper Caves | Entered Zhirov 49429 | -5/Zhirov | Discovered new exit (range 3) 49442 | -5/Zhirov | Identified exit to Proximity Caves 49479 | -5/Zhirov | Met Zhirov 49530 | -5/Zhirov | Learned location of Quarantine (-3) 49580 | -5/Zhirov | Zhirov requested help retrieving the SGEMP Prototype 49618 | -5/Zhirov | Found Alien Artifact 49618 | -5/Zhirov | Identified Integrated Reactor 49618 | -5/Zhirov | Installed Integrated Reactor, increased core energy generation (+10) 49659 | -5/Zhirov | Found Alien Artifact 50216 | -5/Zhirov | Attacked by Zhirov 50228 | -5/Zhirov | Zhirov warped through subspace 50228 | -5/Zhirov | Identified Transdimensional Reconstructor 50228 | -5/Zhirov | Warped through subspace 50238 | -5/Zhirov | Zhirov detonated his lab 50238 | -5/Zhirov | Cloak Generator disabled 50796 | -5/Zhirov | Entered Proximity Caves 51020 | -4/Proximity Caves | Learned Research terminal intel 51885 | -4/Proximity Caves | Build established: Scavenger-Mutant 51994 | -4/Proximity Caves | Discovered exit to Factory (range 2) 53272 | -4/Proximity Caves | Entered Factory 53272 | -4/Factory | Evolved 2 slots: Utility x2 53417 | -4/Factory | Found Quantum Capacitor 53874 | -4/Factory | Spotted B-86 Titan 54063 | -4/Factory | Destroyed B-86 Titan 54463 | -4/Factory | Repaired Arm. Wheel 55341 | -4/Factory | Build established: Mutant 55523 | -4/Factory | Discovered new exit (range 9) 55556 | -4/Factory | Identified exit to Upper Caves 56126 | -4/Factory | Sucked down chute 56126 | -4/Factory | Entered Waste 56127 | -4/Waste | Met a frightened Derelict 56159 | -4/Waste | Spotted C-40 Crusher 56160 | -4/Waste | Spotted C-40 Crusher 56166 | -4/Waste | Spotted C-40 Crusher 56166 | -4/Waste | Spotted C-40 Crusher 56189 | -4/Waste | Spotted C-40 Crusher 56227 | -4/Waste | Destroyed C-40 Crusher 56279 | -4/Waste | Spotted C-40 Crusher 56310 | -4/Waste | Destroyed C-40 Crusher 56339 | -4/Waste | Rewired C-40 Crusher 56356 | -4/Waste | Build established: Scavenger-Mutant 56452 | -4/Waste | Found Damper Plating 56564 | -4/Waste | Discovered new exit (range 15) 56629 | -4/Waste | Destroyed C-40 Crusher 56638 | -4/Waste | Found Damper Plating 56668 | -4/Waste | Found Damper Plating 56714 | -4/Waste | Warlord forces began an assault 56885 | -4/Waste | Identified exit to Factory 56966 | -4/Waste | Entered Factory 56966 | -4/Factory | Accompanied by 18 allies 57606 | -4/Factory | Incoming investigation squad redirected 57779 | -4/Factory | P-70 Sage assimilated hostile S-27 Virus 57856 | -4/Factory | Incoming assault squad redirected 57952 | -4/Factory | Found Quantum Capacitor 58564 | -4/Factory | Identified exit to Extension 58860 | -4/Factory | Build established: Mutant 59068 | -4/Factory | Discovered new exit (range 16) 59118 | -4/Factory | Identified exit to Research 59551 | -4/Factory | Discovered exit to Research (range 14) 59716 | -4/Factory | First assault squad dispatched 59943 | -4/Factory | Destroyed 9 combat bots 60482 | -4/Factory | Incoming assault squad redirected 60488 | -4/Factory | Discovered exit to Research (range 15) 60741 | -4/Factory | Incoming assault squad redirected 60981 | -4/Factory | High security lockdown imminent 61022 | -4/Factory | Entered Extension 61138 | -4/Extension | Rescued a captive Derelict 61263 | -4/Extension | Rescued A7 61377 | -4/Extension | Rescued a captive Derelict 61378 | -4/Extension | Rescued a captive Derelict 61522 | -4/Extension | First assault squad dispatched 61537 | -4/Extension | Incoming assault squad redirected 61764 | -4/Extension | Build established: Commander-Mutant 61842 | -4/Extension | Spotted B-86 Titan 61846 | -4/Extension | Destroyed B-86 Titan 61864 | -4/Extension | Spotted B-86 Titan 61896 | -4/Extension | Allies destroyed B-86 Titan 61897 | -4/Extension | Disrupted transfer network 61909 | -4/Extension | Destroyed 8 combat bots 61917 | -4/Extension | Lost 5 parts (1n2u2w) 61929 | -4/Extension | Rescued a captive Derelict 61962 | -4/Extension | Found Hvy. Reflective Plating 62050 | -4/Extension | Incoming assault squad redirected 62232 | -4/Extension | Extracted ID and sensor layout for unrecognized location from A7's data core 62297 | -4/Extension | Incoming assault squad redirected 62301 | -4/Extension | Incoming assault squad redirected 62356 | -4/Extension | Build established: Hacker-Mutant 62361 | -4/Extension | Incoming assault squad redirected 62513 | -4/Extension | Discovered new exit (range 16) 62516 | -4/Extension | Discovered exit to Research (range 14) 62636 | -4/Extension | Rescued a captive Derelict 62637 | -4/Extension | Rescued a captive Derelict 62695 | -4/Extension | Identified exit to Cetus 62709 | -4/Extension | Entered Cetus 62709 | -4/Cetus | Accompanied by 5 allies 62729 | -4/Cetus | Spotted Cetus Guard 62729 | -4/Cetus | Spotted Cetus Guard 62730 | -4/Cetus | Spotted Cetus Guard 62734 | -4/Cetus | Allies destroyed Cetus Guard 62734 | -4/Cetus | Spotted Cetus Guard 62736 | -4/Cetus | Destroyed Cetus Guard 62742 | -4/Cetus | Destroyed Cetus Guard 62747 | -4/Cetus | Destroyed Cetus Guard 62791 | -4/Cetus | Cetus Manufacturing Module disabled 62950 | -4/Cetus | Found a strange terminal 62999 | -4/Cetus | Discovered new exit (range 16) 63039 | -4/Cetus | Spotted Cetus Guard 63039 | -4/Cetus | Spotted Cetus Guard 63043 | -4/Cetus | Destroyed Cetus Guard 63043 | -4/Cetus | Spotted Cetus Guard 63049 | -4/Cetus | Destroyed Cetus Guard 63053 | -4/Cetus | Destroyed Cetus Guard 63053 | -4/Cetus | Spotted Cetus Guard 63062 | -4/Cetus | Rewired Cetus Guard 63074 | -4/Cetus | Destroyed 7 combat bots 63075 | -4/Cetus | Discovered exit to Research (range 16) 63083 | -4/Cetus | Met Revision 17 63142 | -4/Cetus | Identified exit to Archives 63145 | -4/Cetus | Entered Archives 63145 | -4/Archives | Accompanied by 1 ally 63286 | -4/Archives | Discovered new exit (range 16) 63402 | -4/Archives | Discovered exit to Research (range 15) 63447 | -4/Archives | System corruption reached 10% 63713 | -4/Archives | Discovered new exit (range 14) 63731 | -4/Archives | Identified exit to Hub_04(d) 64028 | -4/Archives | Entered Hub_04(d) 64028 | -4/Hub_04(d) | Accompanied by 1 ally 64028 | -4/Hub_04(d) | Discovered exit to Research (range 11) 64282 | -4/Hub_04(d) | Discovered exit to Research (range 10) 64810 | -4/Hub_04(d) | Build established: Mutant 65189 | -4/Hub_04(d) | Discovered exit to Research (range 8) 65278 | -4/Hub_04(d) | First assault squad dispatched 65357 | -4/Hub_04(d) | Incoming assault squad redirected 65382 | -4/Hub_04(d) | Core integrity fell below 50% 65403 | -4/Hub_04(d) | Lost 8 parts (1n4u3w) 65406 | -4/Hub_04(d) | Destroyed 10 combat bots 65560 | -4/Hub_04(d) | Network Hub disabled 65592 | -4/Hub_04(d) | Spotted Lightning 65599 | -4/Hub_04(d) | Spotted Lightning 65618 | -4/Hub_04(d) | Spotted Lightning 65622 | -4/Hub_04(d) | Network Hub disabled 65635 | -4/Hub_04(d) | Destroyed Lightning 65640 | -4/Hub_04(d) | Found Exp. Targeting Computer 65662 | -4/Hub_04(d) | Destroyed Lightning 65729 | -4/Hub_04(d) | Destroyed Lightning 65735 | -4/Hub_04(d) | Found EMDS 65768 | -4/Hub_04(d) | Found Exp. Targeting Computer 65772 | -4/Hub_04(d) | Found Exp. Phase Shifter 65856 | -4/Hub_04(d) | Spotted Lightning 65869 | -4/Hub_04(d) | Spotted Lightning 65870 | -4/Hub_04(d) | Network Hub disabled 65870 | -4/Hub_04(d) | Spotted Lightning 65873 | -4/Hub_04(d) | Destroyed Lightning 65893 | -4/Hub_04(d) | Build established: Scavenger-Mutant 65894 | -4/Hub_04(d) | Destroyed Lightning 65900 | -4/Hub_04(d) | Destroyed Lightning 65913 | -4/Hub_04(d) | Found EMDS 65989 | -4/Hub_04(d) | Spotted Lightning 65989 | -4/Hub_04(d) | Spotted Lightning 65989 | -4/Hub_04(d) | Spotted Lightning 66002 | -4/Hub_04(d) | Destroyed Lightning 66011 | -4/Hub_04(d) | Destroyed Lightning 66020 | -4/Hub_04(d) | Destroyed Lightning 66069 | -4/Hub_04(d) | Network Hub disabled 66087 | -4/Hub_04(d) | Found EMDS 66088 | -4/Hub_04(d) | Incoming assault squad redirected 66211 | -4/Hub_04(d) | Entered Research 66211 | -3/Research | Evolved 2 slots: Utility x2 66212 | -3/Research | Identified exit to Quarantine 66214 | -3/Research | Loaded intel: 22 terminal locations 66215 | -3/Research | Loaded intel: 4 garrison access locations 66367 | -3/Research | Found Prototype Device 66401 | -3/Research | Identified Exp. Focal Shield 66445 | -3/Research | Identified exit to Armory 66491 | -3/Research | First assault squad dispatched 66660 | -3/Research | Garrison activated, responded to threat 66743 | -3/Research | Incoming investigation squad redirected 66866 | -3/Research | Destroyed 8 combat bots 66876 | -3/Research | Lost 4 parts (4u) 66977 | -3/Research | Incoming assault squad redirected 66983 | -3/Research | Incoming assault squad redirected 67144 | -3/Research | Repaired Centrium Wheel 67217 | -3/Research | Entered Quarantine 67258 | -3/Quarantine | Found Alien Reactor 67258 | -3/Quarantine | Identified Matter Drive 67398 | -3/Quarantine | Found Quantum Capacitor 67467 | -3/Quarantine | First assault squad dispatched 67483 | -3/Quarantine | Incoming assault squad redirected 67493 | -3/Quarantine | Incoming assault squad redirected 67687 | -3/Quarantine | Found Alien Artifact 67724 | -3/Quarantine | Identified Core Reset Matrix 67881 | -3/Quarantine | Found Alien Impact Weapon 67882 | -3/Quarantine | Identified Core Stripper 68168 | -3/Quarantine | Found Transdimensional Reconstructor 68174 | -3/Quarantine | Found Alien Artifact 68463 | -3/Quarantine | Identified Hpw. Transdimensional Reconstructor 68559 | -3/Quarantine | Found Subatomic Replicator 68914 | -3/Quarantine | Discovered new exit (range 12) 68985 | -3/Quarantine | Warped through subspace 68992 | -3/Quarantine | Incoming assault squad redirected 69021 | -3/Quarantine | Found Alien Artifact 69021 | -3/Quarantine | Identified Dimensional Node Initializer 69021 | -3/Quarantine | Initialized slip node 69033 | -3/Quarantine | Found Hpw. Transdimensional Reconstructor 69242 | -3/Quarantine | Incoming assault squad redirected 69500 | -3/Quarantine | Identified exit to Research 69581 | -3/Quarantine | Found Alien Artifact 69581 | -3/Quarantine | Identified Phase Redirector 69667 | -3/Quarantine | Entered Research 69667 | -2/Research | Evolved 2 slots: Power x1, Utility x1 69668 | -2/Research | Identified exit to Testing 69669 | -2/Research | Loaded intel: 21 terminal locations 69974 | -2/Research | Build established: Generator-Mutant 70420 | -2/Research | Repaired Imp. Weapon Shielding 70464 | -2/Research | Repaired Exp. Heat Sink 70498 | -2/Research | Repaired Adv. Force Field 70523 | -2/Research | Repaired Imp. Heavy Armor Plating 70573 | -2/Research | Found Prototype Launcher 70606 | -2/Research | Identified Hellfire Missile Launcher 70637 | -2/Research | Spotted B-90 Cyclops 70941 | -2/Research | Incoming investigation squad redirected 70989 | -2/Research | Fabricated Exp. Weapon Shielding (x1) 71503 | -2/Research | Entered Testing 71531 | -2/Testing | Found Prototype Ballistic Gun 71531 | -2/Testing | Identified Hyp. Multirail 71586 | -2/Testing | Found Prototype Ballistic Cannon 71586 | -2/Testing | Identified Perforator 71684 | -2/Testing | Found Prototype Processor 71712 | -2/Testing | Repaired Adv. Coolant Injector 71987 | -2/Testing | Spotted PD-DZR1TT9ZS0 72039 | -2/Testing | Discovered new exit (range 20) 72091 | -2/Testing | Identified exit to Access 72187 | -2/Testing | Found Quantum Capacitor 72633 | -2/Testing | Found Prototype Ballistic Cannon 72633 | -2/Testing | Identified Omega Cannon 72952 | -2/Testing | Identified Exp. Core Analyzer 73118 | -2/Testing | Found Portable AFG 73430 | -2/Testing | Found Prototype Energy Gun 73430 | -2/Testing | Identified Tachyon Dispersion Ray 73792 | -2/Testing | Incoming investigation squad redirected 73850 | -2/Testing | System corruption reached 10% 74503 | -2/Testing | First assault squad dispatched 74808 | -2/Testing | Spotted Fortress 74825 | -2/Testing | Destroyed Fortress 74832 | -2/Testing | Found Vortex Chain Reactor 74837 | -2/Testing | Found Centrium Heavy Armor Plating 74848 | -2/Testing | Found Vortex Chain Reactor 74855 | -2/Testing | Found Exp. Force Field 74860 | -2/Testing | Found Exp. EM Disruption Field 74983 | -2/Testing | Discovered new exit (range 5) 74988 | -2/Testing | Identified exit to Section 7 75230 | -2/Testing | Entered Section 7 75525 | -2/Section 7 | Repaired Exp. Weapon Shielding 75546 | -2/Section 7 | Repaired Imp. Weapon Shielding 75577 | -2/Section 7 | Repaired Adv. Transmission Jammer 75614 | -2/Section 7 | Repaired Centrium Wheel 76232 | -2/Section 7 | Used Subatomic Replicator to create Alien Artifact 76237 | -2/Section 7 | Identified Supercharged Integrated Reactor 76237 | -2/Section 7 | Installed Supercharged Integrated Reactor, increased core energy generation (+15) 76318 | -2/Section 7 | Found Alien Artifact 76325 | -2/Section 7 | Identified Microwarp Drive 76404 | -2/Section 7 | Found Integrated Reactor 76404 | -2/Section 7 | Installed Integrated Reactor, increased core energy generation (+10) 76773 | -2/Section 7 | Spotted Alpha 7 76776 | -2/Section 7 | Spotted Alpha 7 76787 | -2/Section 7 | Destroyed Alpha 7 76795 | -2/Section 7 | Destroyed Alpha 7 77051 | -2/Section 7 | Found Exp. Hacking Suite 77091 | -2/Section 7 | Found Prototype Ballistic Gun 77091 | -2/Section 7 | Identified Multirail 77177 | -2/Section 7 | Found Exp. ECM Suite 77181 | -2/Section 7 | Found Exp. Target Analyzer 77230 | -2/Section 7 | First assault squad dispatched 77260 | -2/Section 7 | Incoming assault squad redirected 77607 | -2/Section 7 | Spotted B-99 Colossus 77698 | -2/Section 7 | Found Alien Artifact 77698 | -2/Section 7 | Identified LRC Storage 77698 | -2/Section 7 | Installed LRC Storage, increased inventory capacity (+2) 77701 | -2/Section 7 | Found Alien Artifact 77701 | -2/Section 7 | Identified LRC Boosters 77701 | -2/Section 7 | Installed LRC Boosters, increased mass support (+10) 77932 | -2/Section 7 | Spotted Striker 77932 | -2/Section 7 | Spotted Striker 77950 | -2/Section 7 | Destroyed Striker 77954 | -2/Section 7 | Destroyed Striker 77998 | -2/Section 7 | Found Alien Energy Gun 77998 | -2/Section 7 | Identified Sigix Sheargun 78020 | -2/Section 7 | Spotted Striker 78020 | -2/Section 7 | Spotted Striker 78093 | -2/Section 7 | Spotted Executioner 78093 | -2/Section 7 | Spotted Executioner 78113 | -2/Section 7 | Destroyed Executioner 78114 | -2/Section 7 | Destroyed Executioner 78256 | -2/Section 7 | Incoming assault squad redirected 78346 | -2/Section 7 | Incoming assault squad redirected 78346 | -2/Section 7 | Incoming assault squad redirected 78376 | -2/Section 7 | Destroyed 9 combat bots 78397 | -2/Section 7 | Destroyed Striker 78400 | -2/Section 7 | Destroyed Striker 78416 | -2/Section 7 | Found Alien Energy Cannon 78416 | -2/Section 7 | Identified Sigix Shearcannon 78543 | -2/Section 7 | Incoming assault squad redirected 78548 | -2/Section 7 | Incoming assault squad redirected 78560 | -2/Section 7 | Destroyed 8 combat bots 78573 | -2/Section 7 | Found Transdimensional Reconstructor 78576 | -2/Section 7 | Found Transdimensional Reconstructor 78601 | -2/Section 7 | Warped through subspace 78616 | -2/Section 7 | Incoming assault squad redirected 78694 | -2/Section 7 | High security lockdown imminent 78708 | -2/Section 7 | Core integrity fell below 50% 78721 | -2/Section 7 | Entered Access 78721 | -1/Access | Evolved 2 slots: Utility x2 78971 | -1/Access | First assault squad dispatched 79114 | -1/Access | Destroyed 7 combat bots 79356 | -1/Access | Incoming investigation squad redirected 79402 | -1/Access | Lost 5 parts (2n3u) 79443 | -1/Access | Destroyed 11 combat bots 79497 | -1/Access | Incoming assault squad redirected 79501 | -1/Access | Incoming assault squad redirected 79539 | -1/Access | Lost 4 parts (1n3u) 79558 | -1/Access | Fabricated Assault Drone Bay? 79579 | -1/Access | Core integrity fell below 50% 79670 | -1/Access | Warped through subspace 79672 | -1/Access | Warped through subspace 79697 | -1/Access | High security lockdown imminent 79698 | -1/Access | Core integrity fell below 20% 79728 | -1/Access | Lost 7 parts (4p2n1u) 79777 | -1/Access | High security lockdown engaged 79857 | -1/Access | Warped through subspace 79969 | -1/Access | Destroyed by G-73 Enforcer with Phase Gun Last Messages --------------- 79957_ Assault Drone released from Assault Drone Bay. 79957_ Destroyed Unknown Energy Gun. 79958_ Slug penetrates P-80 Master. 79959_ U-05 Engineer lays Concrete. 79960_ Slug penetrates P-80 Master. 79961_ The unstable cave ceiling collapses. 79962_ Assault Drone retrieved by Assault Drone Bay. 79962_ Slug penetrates P-80 Master. 79962_ Destroyed Unknown Hover Unit. 79962_ Destroyed Adv. Heat Sink. 79962_ P-80 Master destroyed. 79965_ Assault Drone released from Assault Drone Bay. 79965_ Slug penetrates S-43 Plague. 79967_ Slug penetrates Wall. 79969_ C-30 ARC bursts open, deploying its payload. 79969_ G-73 Enforcer unfolds itself. 79969_ L-61 Swordsman unfolds itself. 79969_ M-36 Artificer unfolds itself. 79969_ Assault Drone suffers critical hit (Destroy). 79969_ Assault Drone destroyed. Map ----- +----------------------------------------------------+ | ??????????????? T"##?## # ?? ##? | | ????????????????" """##?## # ? ##? | | ????????????????"" "" ##?## # ##? | | ????????????? """ ##?## # ### | | ?????????????? " ##?## # | | ?????????????? ##### ! "+% | | ?????????????? ##### # | | ????## ????????? ### # # ? = | | ????## ############/#### # ??? | | ????## ########### + = # ????? | | ??#### !=! # # ?????? | | ?##### !=! # % # ?????? | | =! / ######## ?????? | | # # ###### ?????? | | # ##????????? | | ?? # %! ##????????? | | ??? # !*= ##????????? | | ??? %* # = ! # ##????????? | | g%=# # # ##????????? | | ###+######### ##= # ##????????? | | # #g " ### ##g m ##????????? | | # # s# #### l ##????????? | | # "" ##ss######;! l # #####????????? | | ??? "" ## n !%= "?????? | | ??? """""" ## % [= "?????? | | ???????"?"""" ?## ####@###### ####### ???????? | | ??????????" ??## ####g###### #######????????? | | ??????????" ??##A ####/###### ##?????????????? | | ????????? ???## o # g ## ##?????????????? | | # ## # b ## ##?????????????? | | ################# # g %"## ###????????????? | | # " ## ###????????????? | | # """ #" /"##????????????? | | # """ ## %###????????????? | | """" # " ## "####??????????? | | """"" # ## "####??????????? | | """"" # ## #! ###########?? | | """" ###+####### #"############?? | | ## # ##?? | | ## # ##?? | | T""" ## # ##?? | | ############################ ## # ##?? | | ############################ ## " ##?? | | ##??????????????????????????? ## # ##?? | | ##????????????????????????## ## # ! ##?? | | ##????????????????????????## ## ####+#########?? | | ???????????????????????? # # # """ ###?? | | ????????????????????????????? # ""R" ##??? | | ????????????????????????????? *+% "" " ]##??? | | ???????????????????????????? # " ##??? | +----------------------------------------------------+ Best States ------------- Heat Dissipation 128 Coolant Potential 120 Energy Generation 114 Energy Capacity 1725 Matter Stores 410 Matter Capacity 600 Sight Range 20 Robot Scan Range 20 Terrain Scan Density 10 Jamming Range 16 Cloak Strength 4 Additional Mass Support 20 EM Shielding 3 Corruption Block 5 Armor Coverage 2400 Resistance: KI 30 Resistance: TH 25 Resistance: EX 15 Resistance: EM 90 Resistance: I 15 Resistance: S 15 Resistance: P 15 Weapon Shielding 100 Phase Shifting 15 Evasion (%) 55 Targeting Accuracy 12 Target Analysis 6 Recoil Reduction 3 Particle Charging 25 Kinecelleration 40 Offensive Hacking 28 Relay Coupler Types 2 Relay Coupler Value 50 Authchip Count 4 Item Schematics ----------------- Cargo Storage Unit | -9/Recycling | Hacked Exp. Sensor Array | -7/Factory | Scanalyzed Combat Drone Bay | -7/Data Miner | Free Lgt. Regenerative Plating | -7/Data Miner | Free Cld. Cesium-ion Thruster | -7/Data Miner | Free Exp. Targeting Computer | -7/Data Miner | Free Antimatter Cannon | -7/Data Miner | Free Antigrav System | -7/Data Miner | Free Imp. Transmission Jammer | -7/Data Miner | Free Hvy. Mass Driver | -7/Data Miner | Free Fission Core | -7/Data Miner | Free Point Defense System | -7/Data Miner | Free Imp. Heavy Treads | -7/Data Miner | Free Adv. Thermal Shield | -7/Data Miner | Free Adv. Melee Analysis Suite | -6/Zion | Archive Mak. Terrain Scanner | -6/Zion | Archive Hvy. Plasma Cannon | -6/Zion | Archive Imp. Coolant Injector | -6/Zion | Archive Imp. Particle Charger | -6/Zion | Archive Phasing Sabre | -6/Zion | Archive Hpw. Shock Rifle | -6/Zion | Archive Adv. Reaction Control System | -6/Zion | Archive Imp. Recalibrator | -6/Zion | Archive Imp. Actuator Array | -6/Zion | Archive Arc Thrower | -6/Zion | Archive Hvy. Shock Bomb Launcher | -6/Zion | Archive Assault Drone Bay | -5/Zhirov | Free Exp. Heat Sink | -5/Zhirov | Free Exp. Optical Array | -5/Zhirov | Free Imp. Arc Thrower | -5/Zhirov | Free Centrium Heavy Armor Plating | -3/Research | Hacked Exp. Coolant Injector | -3/Quarantine | Archive Electron Diverter | -3/Quarantine | Archive Coolant Network | -3/Quarantine | Archive Adv. Remote Shield | -3/Quarantine | Archive Cld. Antigrav System | -3/Quarantine | Archive Thunder Hammer | -3/Quarantine | Archive Exp. Weapon Shielding | -2/Research | Hacked Particle Accelerator | -2/Research | Scanalyzed Exp. Reaction Control System | -2/Research | Scanalyzed Adv. Gravity Neutralizer | -2/Testing | Archive Spectral Analyzer | -2/Testing | Archive Prc. Phase Gun | -2/Testing | Archive Hdn. Centrium Leg | -2/Testing | Archive Adv. EM Disruption Field | -2/Testing | Archive Cld. Impulse Thruster | -2/Testing | Archive Enh. Nova Cannon | -2/Testing | Hacked Centrium Heavy Treads | -2/Testing | Archive Exp. Gyrokinetic Inverter | -2/Testing | Archive Exp. Core Analyzer | -2/Testing | Scanalyzed Adv. Energy Well | -2/Testing | Archive Imp. Quantum Reactor | -2/Testing | Hacked Cld. Proton Cannon | -2/Testing | Archive Enh. Gamma Bomb Array | -2/Section 7 | Hacked Exp. Force Field | -2/Section 7 | Archive Exp. Thermal Defense Suite | -2/Section 7 | Archive Exp. Q-thruster | -2/Section 7 | Archive Imp. Diametric Drive | -2/Section 7 | Archive Enh. Biometal Leg | -2/Section 7 | Archive Hdn. Centrium Wheel | -2/Section 7 | Archive Imp. Lightning Gun | -2/Section 7 | Archive Shock Maul | -2/Section 7 | Archive Exp. Signal Interpreter | -2/Section 7 | Archive Adv. Thermal Defense Suite | -2/Section 7 | Archive Exp. Power Amplifier | -2/Section 7 | Archive Plasma Lance | -2/Section 7 | Archive Diametric Drive | -2/Section 7 | Archive Exp. Flexi-carbon Leg | -2/Section 7 | Archive Prc. Energy Filter | -2/Section 7 | Archive Exp. Field Recycling Unit | -2/Section 7 | Archive Robot Schematics ------------------ M-13 Machinist | -9/Recycling | Hacked O-16 Technician | -9/Recycling | Hacked G-47 Trooper | -7/Data Miner | Free C-17 Slicer | -7/Data Miner | Free B-48 Gladiator | -7/Data Miner | Free R-10 Processor | -7/Data Miner | Free H-66 Slayer | -7/Data Miner | Free R-06 Scavenger | -6/Zion | Archive L-41 Fighter | -6/Zion | Archive Y-72 Warden | -6/Zion | Archive B-60 Warrior | -3/Quarantine | Archive S-43 Plague | -2/Testing | Archive A-15 Conveyor | -2/Testing | Archive L-61 Swordsman | -2/Testing | Archive T-07 Excavator | -2/Testing | Archive A-27 Freighter | -2/Testing | Hacked K-01 Serf | -2/Testing | Archive G-73 Enforcer | -2/Section 7 | Archive B-74 Champion | -2/Section 7 | Archive Fabricated ------------ Exp. Sensor Array | x1 | -6/Factory | Authchip Combat Drone Bay | x1 | -6/Factory Exp. Weapon Shielding | x1 | -2/Research Assault Drone Bay | x1 | -1/Access Alien Tech Used ----------------- Integrated Reactor Transdimensional Reconstructor Matter Drive Core Stripper Dimensional Node Initializer Phase Redirector Subatomic Replicator Supercharged Integrated Reactor Microwarp Drive LRC Storage LRC Boosters Sigix Sheargun Sigix Shearcannon High-powered Transdimensional Reconstructor Achievements -------------- None Challenges ------------ None Game ------ Seed MobileBeamShearcannon Manual? 0 Play Time 23:13:08 Cumulative 1424.4 hours Start 2022.03.23 @ 21:20:28 End 2022.04.13 @ 22:41:25 Sessions 13 Manual Loads 0 Difficulty Rogue Special Mode None Game No. 427 Rogue 427 Adventurer 0 Explorer 0 Win Type - Total 266 Types 216/7/15/4/3/2/17/1/1 Lore% 92 Gallery% 95 Achievement% 95 Wizard Run 0 Options --------- ASCII 0 Keyboard 0 Movement Numpad Keybinds 0 Fullscreen 1 Font 18/SmallcapsGlow Map View 76x50 Tactical HUD 1 Map Filters NONE Filters NONE Steam 1 RUN: 3b79569a-2920-4ec8-a299-c2d0f312421c